Workbook

Sheet INFO
A1: DISCLAIMER: This spreadsheet has been developed in the framework of the revision of the standards linked to the "Energy Performance of Buildings Directive" recast (EPBD-recast, directive 2010/31/EU). It is meant for technical committee(s) and the working group(s) concerned by the revision of the standard to which this spreadsheet applies to check that all equations in the revised standard are consistent and can be linked with other relevant standards. It is not meant to perform a full or partial energy performance calculation.
A2: Although it has been developed with care, neither the technical committee(s) not the working group(s) in which the standard to which this spreadsheet applies warrant that the calculations and procedures in this spreadsheet are free of errors. The technical committees s well as the working groups and their respective members expressly disclaims any liability or responsibility arising from use of this spreadsheet, or any consequences thereof. Any responsibility arising from the use of this spreadsheet lies with the user.
A3: WARNING: Note that the spreadsheet does not allow to test all calculation options that are possible according to the standard to which it applies. This remark applies in particular but not only to limitations on the number instances of a variable that can be considered. In case of differences, the standard should be regarded as the reference, not the spreadsheet.
A4: TERMS OF USE This file can be used freely only as a tool to help understand the supported EN standard. Any other application is deemed to be an unintended and unapproprite use of this file.
A5: Intended use of this document Those responsible for the drafting of actual individual EPB standards shall - read and understand the following documents - prCEN/TS 16628 Basic Principles (in short "BP") - prCEN/TS 16629 Detailed Technical Rules (in short "DTR") - prEN 15603:2013 ("Overarching Standard", in short "OA")) - prCEN/TR 15615:2013 Technical report to overarching standard; - Prepare their individual EPB standard according to CEN rules, BP, DTR and OA - Prepare the accompanying technical report using the dedicated template - Prepare an accompanying XLS spreadsheet, to demonstrate inputs, output and calculation chain. This sample excel spreadsheet provides a template to help in this task.
A6: Why an Excel spradsheet? To demonstrate the validity and required data I/O for the calculation procedure defined in the standard: - list of all input needed --> sheet "Method_input" - list of intended output --> sheet "Method_output" - calculation sequence --> sheet "Method_calculation"
A7: The example is prepared for a simple procedure. The sheet calculation may need extensions such as: - using several columns when operating on arrays - refering to a subset of sheets input/calculation/output to describe a subroutine For complex tasks MACRO can be used. This sheet does not support calculation methods that take into account data in a different time-step than that that is being calculated. A version that allows taking into account values at previous time step will be developed.
A8: LIST SHEETS
A9: Simplified_input_correlation Use this sheet to demontrate simplified input correlation, if any in your standard. Typically these correlations are defined in annex C of the standard. They provide the normal detailed input of a procedure, based on a simplified input data set.
A10: Product_descriptive_data Use this sheet to list product descriptive data (typically with case identifiers). Some examples of selection tables are given. The output from the selection tables (green cells) can be linked to the sheet "method_input" for use in the procedure.
A11: Product_tech_data Use this sheet to list product technical data (typically numerical values and data). Some examples are given with default that may be typically included in annex A of the standard. The output from the selection tables (green cells) can be linked to the sheet "method_input" for use in the procedure.
A12: Process_design_data Use this sheet to list system descriptive data (typically with case identifiers). Some examples of selection tables are given. The output from the selection tables (green cells) can be linked to the sheet "method_input" for use in the procedure.
A13: Data_catalogue_example It is an example of how a data catalogue can work, filtering the catalogue of product properties based on product descriptive data. You can optionally build a similar catalogue for products involved in your standard.
A14: Input_series Prepare in this sheet data for each time step if you want to test the procedure on more steps.
A15: Method_input List in this sheet all the input required for the calculation in one time step. THIS SHEET IS REQUIRED TO DEMONSTRATE THE REQUIRED DATA INPUT.
A16: Method_calculation Detail in this sheet your calculation procedure. There should be one calculation in one cell for each equation in the standard. THIS SHEET IS REQUIRED TO DEMONSTRATE THE CALCULATION PROCEDURE.
A17: Method_output List in this sheet all the intended output of the procedure. THIS SHEET IS REQUIRED TO DEMONSTRATE THE AVAILABLE DATA OUTPUT.
A18: Output_series Series alculation results are stored in this sheet. Calculation for each time step is launched in this sheet.
A19: Other_systems This sheet includes simple simulation of connected systems to test data links with subsystem modules.

Sheet Product_tech_data
A1: Create here a simulation of each default data formula given in annex A of the standard. Optionally connect the selected values to the detailed input data selection sheet (detailed input)
A5: Product technical data: HEAT EMITTERS
B6: Emitters nominal Δϑ air | C6: Emitters exponent n | D6: Emitters nominal Δϑ water
A7: Radiator | B7: 50 | C7: 1.3 | D7: 20
A8: Floor heating | B8: 15 | C8: 1.1 | D8: 5
A9: Fan-coil | B9: 25 | C9: 1 | D9: 10
A10: Special option 1 | B10: 30 | C10: 1.2 | D10: 10
A11: Last option | B11: 50 | C11: 1.3 | D11: 10
A41: Clause | B41: Symbol | C41: Unit | D41: Value
A42: Clause | B42: Фlrh,comb,Pn | C42: kW | D42: =42*3 -> 126
A43: Clause | B43: Фlrh,comb,Pmin | C43: kW | D43: =+D42*0.5 -> 63
A46: 4
A47: Data table AXX
A48: Data | B48: ηlrh,comb | C48: ηlrh,comb,Pmin
A49: Unit | B49: % | C49: %
A50: On-Off appliances | B50: 104 | C50: n.a.
A51: Multi-stage or modulating appliances with modulated combustion air flow | B51: 94 | C51: 104
A52: Multi-stage or modulating appliances without modulated combustion air flow | B52: 102 | C52: 90
A53: Measured value | B53: 99 | C53: 106
A54: Manufacturer data | B54: 104 | C54: 106
A55: Last option | B55: 90 | C55: 90
A94: generator output at full load;
A95: generator efficiency at full load;
A96: generator output at intermediate load;
A97: generator efficiency at intermediate load;
A98: stand-by heat loss at test temperature difference Dθi,test;
A99: power consumption of auxiliary devices at full load;
A100: power consumption of auxiliary devices at intermediate load;
A101: stand-by power consumption of auxiliary devices;
A102: minimum operating boiler temperature.
A103: Recoverable fraction of stand-by losses
A105: correction factor of full-load efficiency;
A106: correction factor of intermediate load efficiency;
A108: generator average water temperature at test conditions for full load;
A109: generator average water temperature at test conditions for intermediate load;
A110: difference between mean boiler temperature and test room temperature in test conditions;
A112: part of the auxiliary energy recovered
A113: part of the nominal electrical power not transmitted to the distribution sub-system

Sheet Process_design_data
A2: These selection described the type of hydraulic connection of emiters and generators
A5: Emission and control circuit
B6: EM_CIRCUIT_TYPE
A7: Description | B7: Specifier, parts | C7: Specifier, complete
A8: Type 1 - Constant flow | B8: CONST_FLW | C8: =$B$6&"_"&B8 -> EM_CIRCUIT_TYPE_CONST_FLW
A9: Type 2 - Variable flow | B9: VAR_FLW | C9: =$B$6&"_"&B9 -> EM_CIRCUIT_TYPE_VAR_FLW
A10: Type 3 - ON-OFF | B10: ON_OFF | C10: EM_CIRCUIT_TYPE_ON_OFF
A11: Type 4 - By bass | B11: BY_PASS | C11: EM_CIRCUIT_TYPE_BY_PASS
A14: Generator circuit
B15: GEN_CIRCUIT_TYPE
A16: Description | B16: Specifier, parts | C16: Specifier, complete
A17: Type 1 - Direct connection | B17: DIRECT | C17: =$B$15&"_"&B17 -> GEN_CIRCUIT_TYPE_DIRECT
A18: Type 2 - Independent flow | B18: INDEP | C18: =$B$15&"_"&B18 -> GEN_CIRCUIT_TYPE_INDEP
A19: Type 3 - Heat exchanger | B19: EXCH | C19: GEN_CIRCUIT_TYPE_EXCH
A20: Type 4 - Anti-condensate | B20: NOCOND | C20: GEN_CIRCUIT_TYPE_NOCOND

Sheet Calculation_options
A2: Calculation options
A4: Simplified heat recovery dhw
A5: 1 | B5: OPT_HEAT_REC | C5: =INDEX(C7:C8,A5) -> OPT_HEAT_REC_SIMPLE
A6: Description | B6: Specifier, parts | C6: Specifier, complete
A7: Simplified heat recovery | B7: SIMPLE | C7: =$B$5&"_"&B7 -> OPT_HEAT_REC_SIMPLE
A8: Explicit heat recovery | B8: DETAIL | C8: =$B$5&"_"&B8 -> OPT_HEAT_REC_DETAIL

Sheet Input_series
A1: Load here the value of input variables for each time-step (time series) Set the number of input data for each time steps and the number of time step before running The macro from sheet "Output series". Local constant data may be input via the sheets "Constants"
A3: Time series for data input
A4: Settings
A5: Number of input data | C5: 21
A6: Number of time steps | C6: 12 | O6: NOT USED IN THIS EXAMPLE
A8: Description | B8: Dhw needs, TZ1 | C8: Dhw needs, TZ2 | D8: Dhw needs, TZ3 | E8: Calculation interval | F8: Heating system on time | G8: Dhw system on time | H8: cold water temperature | I8: Heating needs, TZ1 | J8: Heating needs, TZ2 | K8: Heating needs, TZ3 | L8: heat energy required by the AHU | M8: operation time of coil circuit | N8: required flow temperature | O8: average temperature of the air in the coil | P8: Heat energy required by the cooling generator | Q8: required flow temperature | R8: required return temperature | S8: Internal temperature of thermal zone TZ1 | T8: Internal temperature of thermal zone TZ2 | U8: Internal temperature of thermal zone TZ3 | V8: External air temperature
A9: Symbol | B9: QW;nd;wzn,1 | C9: QW;nd;wzn,2 | D9: QW;nd;wzn,3 | E9: tci | F9: tH;on | G9: tW;on | H9: ϑW;cold | I9: QH;nd;tz,1 | J9: QH;nd;tz,2 | K9: QH;nd;tz,3 | L9: QHV;gen;in;req | M9: tV | N9: ϑV;gen;flw | O9: ϑV;gen;air | P9: QC;gen;in;req | Q9: ϑC;gen;in;flw | R9: ϑC;gen;in;ret | S9: ϑint;tz,1 | T9: ϑint;tz,2 | U9: ϑint;tz,3 | V9: ϑext
A10: Unit | B10: kWh | C10: kWh | D10: kWh | E10: h | F10: h | G10: h | H10: kWh | I10: kWh | J10: kWh
A11: Origin
A13: Time stamp | D13: VALUES
A14: 1 | B14: 248 | C14: 186 | D14: 300 | E14: 744 | F14: =+E14 -> 744 | G14: =+E14 -> 744 | H14: 10 | I14: 1800 | J14: 1600 | K14: 2200 | L14: 0 | M14: 0 | N14: 0 | O14: 0 | P14: 0 | Q14: 0 | R14: 0 | S14: 20 | T14: 20 | U14: 20 | V14: 2
A15: 2 | B15: 224 | C15: 168 | D15: 270 | E15: 672 | F15: =+E15 -> 672 | G15: =+E15 -> 672 | H15: 10 | I15: 1400 | J15: 1200 | K15: 1800 | L15: 0 | M15: 0 | N15: 0 | O15: 0 | P15: 0 | Q15: 0 | R15: 0 | S15: 20 | T15: 20 | U15: 20 | V15: 4
A16: 3 | B16: 248 | C16: 186 | D16: 300 | E16: 744 | F16: 744 | G16: 744 | H16: 11 | I16: 800 | J16: 600 | K16: 900 | L16: 0 | M16: 0 | N16: 0 | O16: 0 | P16: 0 | Q16: 0 | R16: 0 | S16: 20 | T16: 20 | U16: 20 | V16: 7
A17: 4 | B17: 240 | C17: 180 | D17: 290 | E17: 720 | F17: 720 | G17: 720 | H17: 11 | I17: 500 | J17: 300 | K17: 400 | L17: 0 | M17: 0 | N17: 0 | O17: 0 | P17: 0 | Q17: 0 | R17: 0 | S17: 20 | T17: 20 | U17: 20 | V17: 12
A18: 5 | B18: 248 | C18: 186 | D18: 300 | E18: 744 | F18: 0 | G18: 744 | H18: 12 | I18: 0 | J18: 0 | K18: 0 | L18: 0 | M18: 0 | N18: 0 | O18: 0 | P18: 0 | Q18: 0 | R18: 0 | S18: 20 | T18: 20 | U18: 20 | V18: 17
A19: 6 | B19: 240 | C19: 180 | D19: 290 | E19: 720 | F19: 0 | G19: 720 | H19: 13 | I19: 0 | J19: 0 | K19: 0 | L19: 0 | M19: 0 | N19: 0 | O19: 0 | P19: 0 | Q19: 0 | R19: 0 | S19: 22 | T19: 22 | U19: 22 | V19: 22
A20: 7 | B20: 248 | C20: 186 | D20: 300 | E20: 744 | F20: 0 | G20: 744 | H20: 12 | I20: 0 | J20: 0 | K20: 0 | L20: 0 | M20: 0 | N20: 0 | O20: 0 | P20: 0 | Q20: 0 | R20: 0 | S20: 24 | T20: 24 | U20: 24 | V20: 26
A21: 8 | B21: 248 | C21: 186 | D21: 300 | E21: 744 | F21: 0 | G21: 744 | H21: 12 | I21: 0 | J21: 0 | K21: 0 | L21: 0 | M21: 0 | N21: 0 | O21: 0 | P21: 0 | Q21: 0 | R21: 0 | S21: 22 | T21: 22 | U21: 22 | V21: 24
A22: 9 | B22: 240 | C22: 180 | D22: 290 | E22: 720 | F22: 0 | G22: 720 | H22: 11 | I22: 0 | J22: 0 | K22: 0 | L22: 0 | M22: 0 | N22: 0 | O22: 0 | P22: 0 | Q22: 0 | R22: 0 | S22: 20 | T22: 20 | U22: 20 | V22: 19
A23: 10 | B23: 248 | C23: 186 | D23: 300 | E23: 744 | F23: 744 | G23: 744 | H23: 11 | I23: 600 | J23: 700 | K23: 1000 | L23: 0 | M23: 0 | N23: 0 | O23: 0 | P23: 0 | Q23: 0 | R23: 0 | S23: 20 | T23: 20 | U23: 20 | V23: 14
A24: 11 | B24: 240 | C24: 180 | D24: 290 | E24: 720 | F24: 720 | G24: 720 | H24: 10 | I24: 1100 | J24: 1200 | K24: 1400 | L24: 0 | M24: 0 | N24: 0 | O24: 0 | P24: 0 | Q24: 0 | R24: 0 | S24: 20 | T24: 20 | U24: 20 | V24: 8
A25: 12 | B25: 248 | C25: 186 | D25: 300 | E25: 744 | F25: 744 | G25: 744 | H25: 10 | I25: 1500 | J25: 1400 | K25: 1800 | L25: 0 | M25: 0 | N25: 0 | O25: 0 | P25: 0 | Q25: 0 | R25: 0 | S25: 20 | T25: 20 | U25: 20 | V25: 3

Sheet Method_input
A1: THIS IS A MANDATORY SHEET All input data for the method shall be listed here.
B2: ϑ
A4: Name | B4: Symbol | C4: Software name | D4: Unit | E4: Value | F4: Range | G4: Origin | H4: Varying | I4: Notes
A5: Operating conditions data
A6: Dhw needs, TZ1 | B6: QW;nd;wzn,1 | C6: Q_W_nd_wzn_1 | D6: kWh | E6: 248 | F6: 0...∞ | G6: M8-1 | H6: YES | I6: From 12831-3. Only kWh
A7: Dhw needs, TZ2 | B7: QW;nd;wzn,2 | C7: Q_W_nd_wzn_2 | D7: kWh | E7: 186 | F7: 0...∞ | H7: YES | I7: From 12831-3. Only kWh
A8: Dhw needs, TZ3 | B8: QW;nd;wzn,3 | C8: Q_W_nd_wzn_3 | D8: kWh | E8: 300 | F8: 0...∞ | H8: YES | I8: From 12831-3. Only kWh
A9: Calculation interval | B9: tci | C9: t_ci | D9: h | E9: 744 | F9: 0…8760 | H9: YES | I9: From 52000-1 (?)
A10: Heating system on time | B10: tH;on | D10: h | E10: 744 | F10: 0…8760 | H10: YES | I10: Local
A11: Dhw system on time | B11: tW;on | D11: h | E11: 744 | F11: 0…8760 | H11: YES | I11: Local
A12: cold water temperature | B12: ϑW;cold | D12: °C | E12: 10 | F12: 0…100 | H12: YES | I12: prEN 12831-3 already has a spec about it
A13: Heating needs, TZ1 | B13: QH;nd;tz,1 | D13: kWh | E13: 1500 | F13: 0...∞
A14: Heating needs, TZ2 | B14: QH;nd;tz,2 | D14: kWh | E14: 1400 | F14: 0...∞
A15: Heating needs, TZ3 | B15: QH;nd;tz,3 | D15: kWh | E15: 1800 | F15: 0...∞
A16: heat energy required by the AHU | B16: QHV;gen;in;req | D16: kWh | E16: 0 | I16: Not used in trhis example
A17: operation time of coil circuit | B17: tV | D17: h | E17: 0 | I17: Not used in trhis example
A18: required flow temperature | B18: ϑV;gen;flw | D18: °C | E18: 0 | I18: Not used in trhis example
A19: average temperature of the air in the coil | B19: ϑV;gen;air | D19: °C | E19: 0 | I19: Not used in trhis example
A20: Heat energy required by the cooling generator | B20: QC;gen;in;req | D20: kWh | E20: 0 | I20: Not used in trhis example
A21: required flow temperature | B21: ϑC;gen;in;flw | D21: °C | E21: 0 | I21: Not used in trhis example
A22: required return temperature | B22: ϑC;gen;in;ret | D22: °C | E22: 0 | I22: Not used in trhis example
A23: Internal temperature of thermal zone TZ1 | B23: ϑint;tz,1 | D23: °C | E23: 20
A24: Internal temperature of thermal zone TZ2 | B24: ϑint;tz,2 | D24: °C | E24: 20
A25: Internal temperature of thermal zone TZ3 | B25: ϑint;tz,3 | D25: °C | E25: 20
A26: External air temperature | B26: ϑext | D26: °C | E26: 17
A38: Dhw final distribution input | B38: QW;dfin,i;in | D38: kWh | E38: =+'Other modules'!I16 -> 291.152
E39: =+'Other modules'!K16 -> 518.364
A40: Dhw final distribution aux | B40: QW;dfin,i;aux | D40: kWh | E40: =+'Other modules'!I17 -> 0
E41: =+'Other modules'!K17 -> 0
A42: Dhw final distribution recoverable | B42: QW;dfin.i;ls;rbl;H | D42: kWh | E42: =+'Other modules'!I18 -> 43.152
E43: =+'Other modules'!K18 -> 16.182
A44: Dhw final distribution where recoverable | B44: TZW;dfin,i;ls;rbl | D44: - | E44: =+'Other modules'!I19 -> TZ3
E45: =+'Other modules'!K19 -> TZ1
A47: Dhw circulation loop input | B47: QW;dloop,i;in | D47: kWh | E47: =+'Other modules'!K32 -> 563.004
A48: Dhw circulation loop aux | B48: QW;dloop,i;aux | D48: kWh | E48: =+'Other modules'!K33 -> 37.2
A49: Dhw circulation loop recoverable losses | B49: QW;dloop,i;ls;rbl;H | D49: kWh | E49: =+'Other modules'!K34 -> 14.88
A50: Dhw circulation loop where recoverable | B50: TZW;dloop,i;ls;rbl;H | D50: - | E50: =+'Other modules'!K35 -> Any
A52: Dhw storage input | B52: QW;sto,i;in | D52: kWh | E52: =+'Other modules'!J46 -> 898.796
A53: Dhw storage aux | B53: QW;sto,i;aux | D53: kWh | E53: =+'Other modules'!J47 -> 0
A54: Dhw storage recoverable losses | B54: QW;sto,i;ls;rbl;H | D54: kWh | E54: =+'Other modules'!J48 -> 22.32
A55: Dhw storage where recoverable | B55: TZsto,i;ls;rbl,hz | D55: - | E55: =+'Other modules'!J49 -> TZ2
A57: Heating emission and control input | B57: QH;em,i;in | D57: kWh | E57: =+'Other modules'!E62 -> 1648.105825
E58: =+'Other modules'!F62 -> 1531.886784
E59: =+'Other modules'!G62 -> 1296.502064
E60: =+'Other modules'!H62 -> 617.8173518
A61: Heating emission and control aux | B61: QH;em,i;aux | D61: kWh | E61: =+'Other modules'!E63 -> 0
E62: =+'Other modules'!F63 -> 0
E63: =+'Other modules'!G63 -> 7.779012382
E64: =+'Other modules'!H63 -> 0
A65: Heating emission and control recoverable losses | B65: QH;em,i;rbl | E65: =+'Other modules'!E64 -> 0
E66: =+'Other modules'!F64 -> 0
E67: =+'Other modules'!G64 -> 0
E68: =+'Other modules'!H64 -> 0
A69: Heating emission and control, where recoverable | B69: TZH;em,i;ls;rbl | E69: =+'Other modules'!E65 -> TZ1
E70: =+'Other modules'!F65 -> TZ2
E71: =+'Other modules'!G65 -> TZ3
E72: =+'Other modules'!H65 -> TZ3
A74: Distribution 1, 2, 3 and 4
A75: Distribution input | B75: QH;dis,i;ls | E75: =+'Other modules'!E78 -> 1886.529972
E76: =+'Other modules'!F78 -> 1648.793609
E77: =+'Other modules'!G78 -> 1317.830922
E78: =+'Other modules'!H78 -> 941.8145956
A79: Distribution auxiliary | B79: QH;dis,i;aux | E79: =+'Other modules'!$E$79 -> 17.856
E80: =+'Other modules'!$F$79 -> 5.952
E81: =+'Other modules'!$G$79 -> 5.952
E82: =+'Other modules'!$H$79 -> 17.856
A83: Distribution recoverable losses | B83: QH;dis,i;rbl | E83: =+'Other modules'!$E$80 -> 178.9855109
E84: =+'Other modules'!$F$80 -> 58.49061244
E85: =+'Other modules'!$G$80 -> 8.561303488
E86: =+'Other modules'!$H$80 -> 97.26613313
A87: Distribution losses where recoverable | B87: TZH;dis,i;ls;rbl | E87: =+'Other modules'!$E$81 -> TZ1
E88: =+'Other modules'!$F$81 -> TZ2
E89: =+'Other modules'!$G$81 -> TZ3
E90: =+'Other modules'!$H$81 -> TZ3
A91: Distribution 123
A92: Distribution input | B92: QH;dis,i;in | E92: =+'Other modules'!F95 -> 5064.170909
A93: Distribution auxiliary | B93: QH;dis,i;aux | E93: =+'Other modules'!F96 -> 29.76
A94: Distribution recoverable losses | B94: QH;dis,i;rbl | E94: =+'Other modules'!F97 -> 0
A95: Distribution losses where recoverable | B95: TZH;dis,i;ls;rbl | E95: =+'Other modules'!F98 -> None
A96: Thermal solar
A97: Supplied heat | B97: QW;sol;out | D97: kWh | E97: =+'Other modules'!J107 -> 617.92225
A98: Auxiliary energy | B98: QW;sol;aux | D98: kWh | E98: =+'Other modules'!J108 -> 30.8961125
A99: Thermal solar recoverable losses | B99: QW;sol;i;ls;rbl;H | D99: kWh | E99: =+'Other modules'!J109 -> 0
A100: Thermal solar losses where recoverable | B100: TZsol,i;ls;rbl,hz | D100: - | E100: =+'Other modules'!J110 -> None
A101: Generators, step 1
A102: Maximum heat supplied | B102: QH;gen;out;max | D102: kWh | E102: =+'Other modules'!G117 -> 4761.6
D103: kWh | E103: =+'Other modules'!H117 -> 8928
A104: Generators, step 2
A105: Fuel input | D105: kWh | E105: =+'Other modules'!G128 -> 5012.210526
E106: =+'Other modules'!H128 -> 1731.90425
A107: Auxiliary energy | D107: kWh | E107: =+'Other modules'!G129 -> 150.3663158
E108: =+'Other modules'!H129 -> 69.27617001
A109: Generation recoverable losses | B109: QW;gen,i;ls;rbl;H | D109: kWh | E109: =+'Other modules'!G130 -> 100.2442105
E110: =+'Other modules'!H130 -> 61.99349885
A111: Generation where recoverable | B111: TZgen,i;ls;rbl,hz | E111: =+'Other modules'!G131 -> TZ3
E112: =+'Other modules'!H131 -> None
A115: Product data
A116: Product description data
I117: No product descritpion data
A119: Product technical data
A121: nominal power of the coil | B121: ϕV;Hcoil,nom | D121: kW | H121: NO | I121: From TC 156
A122: nominal temperature difference | B122: ΔϑV;Hcoil;nom | D122: °C | H122: NO | I122: From TC 157
A124: Emitters nominal power, HZ1 | B124: ϕH;em;nom | D124: kW | E124: 5 | I124: To be connected to deafult evaluation
A125: Emitters nominal power, HZ2 | B125: ϕH;em;nom | D125: kW | E125: 10
A126: Emitters nominal power, HZ3 | B126: ϕH;em;nom | D126: kW | E126: 5
A127: Emitters nominal power, HZ4 | B127: ϕH;em;nom | D127: kW | E127: 10
A133: System design data
A134: Process design
A135: Heating system zone 1 floor area | B135: Ahz;1 | D135: m² | E135: 120 | H135: NO
A136: Heating system zone 2 floor area | B136: Ahz;2 | D136: m² | E136: 110 | H136: NO
A137: Heating system zone 3 floor area | B137: Ahz;3 | D137: m² | E137: 70 | H137: NO
A138: Heating system zone 4 floor area | B138: Ahz;4 | D138: m² | E138: 80 | H138: NO
A140: Auxiliary energy recovery factor, W, dloop | B140: fW;dloop;aux;rh | E140: 0.85
A142: Auxiliary energy recovery factor, W, sto | B142: fW;sto;aux;rh | E142: 0.85
A144: Recoverable losses recovery factor | B144: frh | E144: 0.8
A146: Auxiliary energy recovery factor, H, em | B146: fH;em;aux;rh | E146: 0.85
A148: Auxiliary energy recovery factor, H, dis | B148: fH;dis;aux;rh | E148: 0.85
A149: Recoverable losses recovery factor H;dis | B149: fH;dis;rbl;rh | E149: 0.8
A152: Heat emitters type data
A153: Emitter type, HZ1 | E153: 1
A154: Emitter type, HZ2 | E154: 1
A155: Emitter type, HZ3 | E155: 2
A156: Emitter type, HZ4 | E156: 3
A159: Emitters nominal Δϑ HZ1 | B159: ΔθH;em;air;n | D159: °C | E159: =INDEX(Product_tech_data!$B$7:$B$11,E153) -> 50
A160: Emitters nominal Δϑ HZ2 | B160: ΔθH;em;air;n | D160: °C | E160: =INDEX(Product_tech_data!$B$7:$B$11,E154) -> 50
A161: Emitters nominal Δϑ HZ3 | B161: ΔθH;em;air;n | D161: °C | E161: =INDEX(Product_tech_data!$B$7:$B$11,E155) -> 15
A162: Emitters nominal Δϑ HZ4 | B162: ΔθH;em;air;n | D162: °C | E162: =INDEX(Product_tech_data!$B$7:$B$11,E156) -> 25
A164: Emitters exponent n HZ1 | B164: nH;em | D164: - | E164: =INDEX(Product_tech_data!$C$7:$C$11,E153) -> 1.3
A165: Emitters exponent n HZ2 | B165: nH;em | D165: - | E165: =INDEX(Product_tech_data!$C$7:$C$11,E154) -> 1.3
A166: Emitters exponent n HZ3 | B166: nH;em | D166: - | E166: =INDEX(Product_tech_data!$C$7:$C$11,E155) -> 1.1
A167: Emitters exponent n HZ4 | B167: nH;em | D167: - | E167: =INDEX(Product_tech_data!$C$7:$C$11,E156) -> 1
A169: Emission circuit type data
A170: Circuit type HZ,1 | D170: 2 | E170: =INDEX(Process_design_data!$A$8:$A$11,Method_input!D170) -> Type 2 - Variable flow
A171: Circuit type HZ,2 | D171: 3 | E171: =INDEX(Process_design_data!$A$8:$A$11,Method_input!D171) -> Type 3 - ON-OFF
A172: Circuit type HZ,3 | D172: 1 | E172: =INDEX(Process_design_data!$A$8:$A$11,Method_input!D172) -> Type 1 - Constant flow
A173: Circuit type HZ,4 | D173: 4 | E173: =INDEX(Process_design_data!$A$8:$A$11,Method_input!D173) -> Type 4 - By bass
A175: Generation circuit type data
A176: Circuit type, GEN 1 | D176: 1 | E176: =INDEX(Process_design_data!$C$17:$C$20,Method_input!D176) -> GEN_CIRCUIT_TYPE_DIRECT
A177: Circuit type, GEN 2 | D177: 2 | E177: =INDEX(Process_design_data!$C$17:$C$20,Method_input!D177) -> GEN_CIRCUIT_TYPE_INDEP
A179: Energy carrier | E179: FUEL_GAS
A181: Control type data
A182: circulation loop operation time | B182: tW;dloop;ON,ci | D182: h | E182: =+$E$11 -> 744 | H182: YES
A183: storage back-up heater operation time | B183: tW;sto;bup;ON,ci | D183: h | E183: =+$E$11 -> 744 | H183: YES
A184: domestic hot water generator operation time | B184: tW;gen;ON,ci | D184: h | E184: 744 | H184: YES
A185: Dhw set temperature in the storage | B185: ϑW;sto | D185: °C | E185: 60 | H185: YES | I185: Missing definition in the standard
A186: Dhw set temperature in the circulation loop | B186: ϑW;dloop | D186: °C | E186: 50 | H186: YES | I186: Missing definition in the standard
A187: Dhw temperature for the expression of needs | B187: ϑW;hot | D187: °C | E187: 40 | H187: NO | I187: Missing definition in the standard
A188: Dhw set temperature in the generator | B188: ϑW;gen | D188: °C | E188: 60 | H188: YES | I188: Missing definition in the standard
A189: Heating emission system operation time | B189: tH;cr,i;ON | D189: h | E189: =+$E$10 -> 744
D190: h | E190: =+$E$10 -> 744
D191: h | E191: 744
D192: h | E192: 744
A194: Set full load DT (water) HZ1 | B194: ΔθH;em;n | D194: °C | E194: =INDEX(Product_tech_data!$D$7:$D$11,Method_input!E153) -> 20
A195: Set full load DT (water) HZ2 | B195: ΔθH;em;n | D195: °C | E195: =INDEX(Product_tech_data!$D$7:$D$11,Method_input!E154) -> 20
A196: Set full load DT (water) HZ3 | B196: ΔθH;em;n | D196: °C | E196: =INDEX(Product_tech_data!$D$7:$D$11,Method_input!E155) -> 5
A197: Set full load DT (water) HZ4 | B197: ΔθH;em;n | D197: °C | E197: =INDEX(Product_tech_data!$D$7:$D$11,Method_input!E156) -> 10
A199: Max flow temperature HZ1 | B199: θH;em;flw;max,i | D199: °C | E199: 80
A200: Max flow temperature HZ2 | B200: θH;em;flw;max,i | D200: °C | E200: 80
A201: Max flow temperature HZ3 | B201: θH;em;flw;max,i | D201: °C | E201: 80
A202: Max flow temperature HZ4 | B202: θH;em;flw;max,i | D202: °C | E202: 80
A204: Max Δθ flow / return HZ1 | B204: ΔθH;em;w;max,i | D204: °C | E204: 20
A205: Max Δθ flow / return HZ2 | B205: ΔθH;em;w;max,i | D205: °C | E205: 20
A206: Max Δθ flow / return HZ3 | B206: ΔθH;em;w;max,i | D206: °C | E206: 20
A207: Max Δθ flow / return HZ4 | B207: ΔθH;em;w;max,i | D207: °C | E207: 20
A209: Desired return temperature HZ1 | B209: θH;em;ret;req | D209: °C | E209: 20
A210: Desired return temperature HZ2 | B210: θH;em;ret;req | E210: 20
A211: Desired return temperature HZ3 | B211: θH;em;ret;req | E211: 20
A212: Desired return temperature HZ4 | B212: θH;em;ret;req | E212: 20
A214: Mixing valve for HZ1 | B214: MIX | E214: 0
A215: Mixing valve for HZ2 | E215: 0
A216: Mixing valve for HZ3 | E216: 1
A217: Mixing valve for HZ4 | E217: 0
A219: Mixing valve Δθ for HZ1 | B219: ΔθH;em;mix | D219: °C | E219: 2
A220: Mixing valve Δθ for HZ2 | B220: ΔθH;em;mix | E220: 2
A221: Mixing valve Δθ for HZ3 | B221: ΔθH;em;mix | E221: 2
A222: Mixing valve Δθ for HZ4 | B222: ΔθH;em;mix | E222: 2
A224: Desired load factor with ON-OFF for HZ1 | B224: βH;em;req | D224: % | E224: 80
A225: Desired load factor with ON-OFF for HZ2 | B225: βH;em;req | D225: % | E225: 80
A226: Desired load factor with ON-OFF for HZ3 | B226: βH;em;req | D226: % | E226: 80
A227: Desired load factor with ON-OFF for HZ4 | B227: βH;em;req | D227: % | E227: 80
A229: Minimum flow temperature for HZ1 | B229: θH;em;flw;min | D229: °C | E229: 50
A230: Minimum flow temperature for HZ2 | B230: θH;em;flw;min | E230: 45
A231: Minimum flow temperature for HZ3 | B231: θH;em;flw;min | E231: 50
A232: Minimum flow temperature for HZ4 | B232: θH;em;flw;min | E232: 45
A234: Generator 1 nominal power | B234: ϕX;gen;n | E234: 8
A235: Generator 2 nominal power | B235: ϕX;gen;n | E235: 15
A236: Generator 1 nominal Δθ | B236: ΔθX;gen;n | E236: 10
A237: Generator 1 nominal Δθ | B237: ΔθX;gen;n | E237: 10
A238: Generator 1: flow control | E238: 0
A239: Generator 1: flow control | E239: 0
A242: Calculation options
A243: Simplified heat recovery from dhw ? | E243: =+Calculation_options!C5 -> OPT_HEAT_REC_SIMPLE
A245: Constants
A246: Water specific heat | B246: cw | C246: c_w | D246: Wh/kgK | E246: 1.16 | G246: EN XXXX | H246: NO
A254: Spare lines for local air heaters
A256: Local air heaters, heat output to air | B256: QH;gen,i;out | D256: kWh | E256: =+'Other modules'!$E$160 -> 1 | J256: HZ1
D257: kWh | E257: =+'Other modules'!$F$160 -> 2 | J257: HZ2
D258: kWh | E258: =+'Other modules'!$G$160 -> 3 | J258: HZ3
D259: kWh | E259: =+'Other modules'!$H$160 -> 0 | J259: HZ4
A260: Supplied heat to water | B260: QH;gen,i;out;w | D260: kWh | E260: =+'Other modules'!$E$161 -> 0
... 19 more rows

Sheet Scheme
B2: Thermal zones | F2: Thermal zones | G2: Heating and dhw zones | I2: Circuits Em & ctrl Final distribution | J2: Node | K2: Distribution | L2: Node | M2: Distribution | N2: Node | O2: Distribution | P2: Generators
B3: TZ1
B4: TZ2 | F4: TZ1 | G4: HZ 1 | I4: CR1
B5: TZ3
B6: None
B7: Any
F8: TZ2 | G8: HZ 2 | I8: CR2 | J8: Node | L8: CR123
O10: Disg,1 | P10: G1
G12: HZ 3 | I12: CR3
F14: TZ 3
N15: Node
G16: HZ 4 | I16: CR4 | O16: Disg,2 | P16: G2
G20: WZ 1 | I20: Dfin,1
L22: Node
L23: Storage
G24: WZ 2 | I24: Dfin,23 | K24: Dloop,23
M26: TS | P26: TS
G28: WZ 3

Sheet Method_calculation
A1: THIS IS A MANDATORY SHEET One time step calculation shall be described here. For each calculation step (= 1 row) data for the formula in column D shall be taken from the "Method_input" sheet or previous calculation steps. Include in the column "Formula ref" its number in the standard text. The example is based on EN 15316-4-1:2008 Copy and paste a copy of the equation into column "Formula" Use the column note for information on the calculation
A3: Description | B3: Symbol | C3: Software name | D3: Unit | E3: Values | M3: Formula ref | N3: Formula | O3: Notes | P3: Editing notes | Q3: Recoverable losses per thermal zone | U3: Auxiliary
E4: HZ 1 | F4: HZ 2 | G4: HZ 3 | H4: HZ 4 | I4: WZ 1 | J4: WZ 2 | K4: WZ 3 | L4: HCW | Q4: =+Scheme!B3 -> TZ1 | R4: =+Scheme!B4 -> TZ2 | S4: =+Scheme!B5 -> TZ3 | T4: =+Scheme!B7 -> Any | U4: H | V4: W
A5: This is the main calculation sheet
A6: Local input data are copied here for clarity and identified in the Notes column
A7: Ouput data to calculation modules is identified by a light green background. Data is copied into "Method_output" sheet and from here into "Other_modules" sheet. | O7: Data ouput to module MXX
A8: Input data from calculation modules is identified by a light blue background. Data is calculated in the "Other_modules" sheet, copied into "Method_input" sheet and from there into this sheet. | O8: Data input as module MXX results
A9: White background lines are calculations done into EN 15316-1
A10: A yellow background (on other colors) highlight attention points
A11: Rose background are comments
A12: Calculation interval | B12: tci | C12: t_ci | D12: h | E12: =+Method_input!E9 -> 744
A13: Heating system on time | B13: tH;on | D13: h | E13: =+Method_input!E10 -> 744
A14: Dhw system on time | B14: tW;on | D14: h | E14: =+Method_input!E11 -> 744
A15: 6.4.1.1 Domestic hot water needs
A16: Domestic hot water needs | B16: QW;nd;wzn,i | D16: kWh | I16: =+Method_input!E6 -> 248 | J16: =+Method_input!E7 -> 186 | K16: =+Method_input!E8 -> 300 | O16: Input data from module M 8.2
A17: Number of taps | P17: Possible input for final distribution calculation
A18: 6.4.1.2 Domestic hot water system required output | K18: WZS23
A19: Combination of needs per dhw system zone | B19: QW;nd;wzs,i | D19: kWh | I19: =+I16 -> 248 | K19: =+J16+K16 -> 486 | M19: (1b) | O19: Also QW;sys;out;wzs,i
A20: 6.4.2.1 Final distribution calculation
A21: Dhw final distribution output | B21: QW;dfin,i;out | D21: kWh | I21: =+I19 -> 248 | K21: =+K19 -> 486 | O21: Data ouput to module M8.6
A22: Dhw final distribution temperature | B22: ϑW;dfin,i | D22: °C | I22: =+Method_input!E185 -> 60 | K22: =+Method_input!E186 -> 50 | O22: Data ouput to module M8.6
A23: Tapping rate | B23: ntap;dfin,i | D23: 1/h | I23: 0.125 | K23: 0.125 | O23: Data ouput to module M8.6
A24: Dhw final distribution input | B24: QW;dfin;i;in | D24: kWh | I24: =+Method_input!E38 -> 291.152 | K24: =+Method_input!E39 -> 518.364 | O24: Data input as module M8.6 results
A25: Dhw final distribution aux | B25: WW;dfin;i;aux | D25: kWh | I25: =+Method_input!E40 -> 0 | K25: =+Method_input!E41 -> 0 | O25: Data input as module M8.6 results | P25: Possibly non-zero to handle ribbon heating | V25: =SUM(I25:K25) -> 0
A26: Dhw final distribution recoverable losses | B26: QW;dfin;i;ls;rbl;hz,j | D26: kWh | I26: =+Method_input!E42 -> 43.152 | K26: =+Method_input!E43 -> 16.182 | O26: Data input as module M8.6 results
A27: Dhw final distribution where recoverable | B27: TZW;dfin;i;ls;rbl;hz,j | I27: =+Method_input!E44 -> TZ3 | K27: =+Method_input!E45 -> TZ1 | O27: Data input as module M8.6 results | P27: This is given as an information from module M8,6 because the final distribution will be described there. | Q27: =IF($E27=Q$4,$E26,0)+IF($F27=Q$4,$F26,0)+IF($G27=Q$4,$G26,0)+IF($H27=Q$4,$H26,0)+IF($I27=Q$4,$I26,0)+IF($J27=Q$4,$J26,0)+IF($K27=Q$4,$K26,0) -> 16.182 | R27: =IF($E27=R$4,$E26,0)+IF($F27=R$4,$F26,0)+IF($G27=R$4,$G26,0)+IF($H27=R$4,$H26,0)+IF($I27=R$4,$I26,0)+IF($J27=R$4,$J26,0)+IF($K27=R$4,$K26,0) -> 0 | S27: =IF($E27=S$4,$E26,0)+IF($F27=S$4,$F26,0)+IF($G27=S$4,$G26,0)+IF($H27=S$4,$H26,0)+IF($I27=S$4,$I26,0)+IF($J27=S$4,$J26,0)+IF($K27=S$4,$K26,0) -> 43.152 | T27: =IF($E27=T$4,$E26,0)+IF($F27=T$4,$F26,0)+IF($G27=T$4,$G26,0)+IF($H27=T$4,$H26,0)+IF($I27=T$4,$I26,0)+IF($J27=T$4,$J26,0)+IF($K27=T$4,$K26,0) -> 0
A28: Dhw final distribution input | B28: QW;dfin,i;in | D28: kWh | I28: =+I24 -> 291.152 | K28: =+K24 -> 518.364
A30: 6.4.2.2 Domestic hot water circulation loop
A31: Dhw circulation loop output | B31: QW;dloop;i;out | D31: kWh | K31: =+K28 -> 518.364 | M31: (3) | O31: Combine connected dfin Trivial because one
A32: Dhw circulation loop output | B32: QW;dloop;i;in | D32: kWh | K32: =+K31 -> 518.364 | M32: (3) | O32: Data ouput to module M8.6
A33: Circulation loop temperature | B33: ϑW;dloop,j | D33: °C | K33: =+Method_input!E186 -> 50 | O33: Data ouput to module M8.6
A34: Circulation loop temperature difference | B34: ΔϑW;dloop,j | D34: °C | K34: 2 | O34: Data ouput to module M8.6
A35: Circulation loop operation time | B35: tdloop;ON | D35: h | K35: =+Method_input!E182 -> 744 | O35: Data ouput to module M8.6
A36: Dhw circulation loop input | B36: QW;dloop;i;ls | D36: kWh | K36: =+Method_input!E47 -> 563.004 | O36: Data input as module M8.6 results
A37: Dhw circulation loop aux | B37: QW;dloop;i;aux | D37: kWh | K37: =+Method_input!E48 -> 37.2 | O37: Data input as module M8.6 results | V37: =SUM(I37:K37) -> 37.2
A38: Dhw circulation loop recoverable losses | B38: QW;dloop;i;ls;rbl;H | D38: kWh | K38: =+Method_input!E49 -> 14.88 | O38: Data input as module M8.6 results
A39: Dhw circulation loop where recoverable | B39: TZW;dloop,i;ls;rbl,hz | D39: - | K39: =+Method_input!E50 -> Any | O39: Data input as module M8.6 results | P39: This is given as an inforamtion from module MXX because the finel distribution will be edescribed there. | Q39: =IF($E39=Q$4,$E38,0)+IF($F39=Q$4,$F38,0)+IF($G39=Q$4,$G38,0)+IF($H39=Q$4,$H38,0)+IF($I39=Q$4,$I38,0)+IF($J39=Q$4,$J38,0)+IF($K39=Q$4,$K38,0) -> 0 | R39: =IF($E39=R$4,$E38,0)+IF($F39=R$4,$F38,0)+IF($G39=R$4,$G38,0)+IF($H39=R$4,$H38,0)+IF($I39=R$4,$I38,0)+IF($J39=R$4,$J38,0)+IF($K39=R$4,$K38,0) -> 0 | S39: =IF($E39=S$4,$E38,0)+IF($F39=S$4,$F38,0)+IF($G39=S$4,$G38,0)+IF($H39=S$4,$H38,0)+IF($I39=S$4,$I38,0)+IF($J39=S$4,$J38,0)+IF($K39=S$4,$K38,0) -> 0 | T39: =IF($E39=T$4,$E38,0)+IF($F39=T$4,$F38,0)+IF($G39=T$4,$G38,0)+IF($H39=T$4,$H38,0)+IF($I39=T$4,$I38,0)+IF($J39=T$4,$J38,0)+IF($K39=T$4,$K38,0) -> 14.88
A40: Dhw circulation loop input | B40: QW;dloop;i;in | D40: kWh | K40: =+K36 -> 563.004
A42: 6.6 DHW Node calculation
A43: Input to connected distributions | B43: QW;node,i;out | D43: kWh | J43: =+K40+I28 -> 854.156 | M43: (12)
A44: Temperature of connected distributions | B44: θW;node,i;out | D44: °C | J44: =MAX(K33,I22) -> 60 | M44: (13) | P44: This not exactly the equation required.
A46: 6.6.5 Domestic hot water storage
A47: Storage output | B47: QW;sto,i;out | D47: kWh | J47: =+J43 -> 854.156 | O47: Data ouput to module M8.7
A48: Set temperature | B48: ϑW;sto | D48: °C | J48: =+J44 -> 60 | O48: Data ouput to module M8.7
A49: Operation time of storage | J49: =+Method_input!E183 -> 744 | O49: Data ouput to module M8.7 | P49: Now set as the calcualtion interval
A50: Dhw storage input | B50: QW;sto;i;in | D50: kWh | J50: =+Method_input!E52 -> 898.796 | O50: Data input as module M8.7 results
A51: Dhw storage aux | B51: QW;sto;i;aux | D51: kWh | J51: =+Method_input!E53 -> 0 | O51: Data input as module M8.7 results | V51: =SUM(I51:K51) -> 0
A52: Dhw storage recoverable losses | B52: QW;sto;i;ls;rbl;H | D52: kWh | J52: =+Method_input!E54 -> 22.32 | O52: Data input as module M8.7 results
A53: Dhw storage where recoverable | B53: TZsto,i;ls;rbl,hz | D53: - | J53: =+Method_input!E55 -> TZ2 | O53: Data input as module M8.7 results | P53: This is given as an inforamtion from module MXX because the finel distribution will be edescribed there. | Q53: =IF($E53=Q$4,$E52,0)+IF($F53=Q$4,$F52,0)+IF($G53=Q$4,$G52,0)+IF($H53=Q$4,$H52,0)+IF($I53=Q$4,$I52,0)++IF($J53=Q$4,$J52,0)+IF($K53=Q$4,$K52,0) -> 0 | R53: =IF($E53=R$4,$E52,0)+IF($F53=R$4,$F52,0)+IF($G53=R$4,$G52,0)+IF($H53=R$4,$H52,0)+IF($I53=R$4,$I52,0)++IF($J53=R$4,$J52,0)+IF($K53=R$4,$K52,0) -> 22.32 | S53: =IF($E53=S$4,$E52,0)+IF($F53=S$4,$F52,0)+IF($G53=S$4,$G52,0)+IF($H53=S$4,$H52,0)+IF($I53=S$4,$I52,0)++IF($J53=S$4,$J52,0)+IF($K53=S$4,$K52,0) -> 0 | T53: =IF($E53=T$4,$E52,0)+IF($F53=T$4,$F52,0)+IF($G53=T$4,$G52,0)+IF($H53=T$4,$H52,0)+IF($I53=T$4,$I52,0)++IF($J53=T$4,$J52,0)+IF($K53=T$4,$K52,0) -> 0
A54: Dhw storage input | B54: QW;sto;i;in | D54: kWh | J54: =+J50 -> 898.796
A56: Thermal solar
A57: Required output for dhw | B57: QW;sol;out;req | D57: kWh | J57: =+J54 -> 898.796
A59: Supplied heat | B59: QW;sol;out | D59: kWh | J59: =+Method_input!E97 -> 617.92225
A60: Auxiliary energy | B60: QW;sol;aux | D60: kWh | J60: =+Method_input!E98 -> 30.8961125 | V60: =SUM(I60:K60) -> 30.8961125
A61: Thermal solar recoverable losses | B61: QW;sol;i;ls;rbl;H | D61: kWh | J61: =+Method_input!E99 -> 0
A62: Thermal solar losses where recoverable | B62: TZsol,i;ls;rbl,hz | D62: - | J62: =+Method_input!E100 -> None | Q62: =IF($E62=Q$4,$E61,0)+IF($F62=Q$4,$F61,0)+IF($G62=Q$4,$G61,0)+IF($H62=Q$4,$H61,0)+IF($I62=Q$4,$I61,0)+IF($J62=Q$4,$J61,0)+IF($K62=Q$4,$K61,0) -> 0 | R62: =IF($E62=R$4,$E61,0)+IF($F62=R$4,$F61,0)+IF($G62=R$4,$G61,0)+IF($H62=R$4,$H61,0)+IF($I62=R$4,$I61,0)+IF($J62=R$4,$J61,0)+IF($K62=R$4,$K61,0) -> 0 | S62: =IF($E62=S$4,$E61,0)+IF($F62=S$4,$F61,0)+IF($G62=S$4,$G61,0)+IF($H62=S$4,$H61,0)+IF($I62=S$4,$I61,0)+IF($J62=S$4,$J61,0)+IF($K62=S$4,$K61,0) -> 0 | T62: =IF($E62=T$4,$E61,0)+IF($F62=T$4,$F61,0)+IF($G62=T$4,$G61,0)+IF($H62=T$4,$H61,0)+IF($I62=T$4,$I61,0)+IF($J62=T$4,$J61,0)+IF($K62=T$4,$K61,0) -> 0
A63: Heat required to back-up heating | D63: kWh | J63: =+J57-J59 -> 280.87375
A64: LOOK FOR THE DEFINITION OF THE LENGTH OF THE HEATING PERIOD IN THE CALCULATION INTERVAL
A66: 6.5.2.1 heat recovery from dhw
A67: Thermal zone specification | E67: TZ1 | F67: TZ2 | G67: TZ3
A68: Heating needs | B68: QH;nd;z,i;req | D68: kWh | E68: =+Method_input!E13 -> 1500 | F68: =+Method_input!E14 -> 1400 | G68: =+Method_input!E15 -> 1800 | O68: Input data from M2.2 | P68: This need alredy includes the contribtuion of air preheating
A69: Thermal zone floor area | B69: Ahz,i | D69: m² | E69: =+Method_input!E135 -> 120 | F69: =+Method_input!E136 -> 110 | G69: 150 | O69: Input data
A70: Recoverable losses from dhw | Q70: =SUM(Q16:Q64) -> 16.182 | R70: =SUM(R16:R64) -> 22.32 | S70: =SUM(S16:S64) -> 43.152 | T70: =SUM(T16:T64) -> 14.88
A71: Split of unlocalised recoverable losses | M71: (3a) | Q71: =+$T$70*E69/SUM($E$69:$G$69) -> 4.698947368 | R71: =+$T$70*F69/SUM($E$69:$G$69) -> 4.307368421 | S71: 5.873684211
A72: Recoverable losses from dhw | B72: QW;sys;ls;rbl;tz,i | E72: =+Q72 -> 20.88094737 | F72: =+R72 -> 26.62736842 | G72: 49.02568421 | Q72: =+Q70+Q71 -> 20.88094737 | R72: =+R70+R71 -> 26.62736842 | S72: 49.02568421
A73: Simplified? | E73: =Method_input!E243=Calculation_options!C7 -> TRUE | O73: Input data | P73: Simplified heat recovery: reduction of needs
A74: Recovery factor | B74: fW;rbl;rh | E74: =+Method_input!E144 -> 0.8 | O74: Input data
A75: Simplified recovery | E75: =IF($E$73,E72*$E$74,0) -> 16.70475789 | F75: =IF($E$73,F72*$E$74,0) -> 21.30189474 | G75: 39.22054737 | M75: (3b)
A76: To explicit recovery | E76: =IF($E$73,0,E72) -> 0 | F76: =IF($E$73,0,F72) -> 0 | G76: 0 | M76: (3d) or (3a) | O76: To thermal zone balance | Q76: =+E76 -> 0 | R76: =+F76 -> 0 | S76: 0
A77: Required heating system output by thermal zone | B77: QH;sys;out;tz,i | E77: =+MAX(E68-E75,0) -> 1483.295242 | F77: =+MAX(F68-F75,0) -> 1378.698105 | G77: 1760.779453 | M77: (3c) or (3e) | N77: Qh,sys;out = Qh,nd - eta rvd x Qrbl
A79: 6.5.2.2 Align thermal zones and heating system zones
A80: Heating system zone floor area | B80: AHZ | D80: m² | E80: 120 | F80: 110 | G80: 100 | H80: 50
A81: Required heating system output by heating system zone | B81: QH;sys;out;hz,i | D81: kWh | E81: =+E77 -> 1483.295242 | F81: =+F77 -> 1378.698105 | G81: =+$G$77*G80/($G$80+$H$80) -> 1173.852968 | H81: =+$G$77*H80/($G$80+$H$80) -> 586.9264842 | O81: tz = thermal zone (heat balance for need calculation, module M2.2) hz = heating system zone (service area) | P81: Apply here any sum or distribution rules to match heating needs by thermal zones to heating system zones and areas heated by specific systems (like stoves, see next step)
A83: 6.4.6.2 Space heating emitters circuits
A85: Internal temperature | B85: θint;tz,i | D85: °C | E85: =+Method_input!$E$23 -> 20 | F85: =+Method_input!$E$24 -> 20 | G85: =+Method_input!$E$25 -> 20 | H85: =+Method_input!$E$25 -> 20 | O85: data input | P85: Possible default value
B86: QH;sys;out;hz,i | D86: kWh | E86: =+E81 -> 1483.295242 | F86: =+F81 -> 1378.698105 | G86: =+G81 -> 1173.852968 | H86: =+H81 -> 586.9264842
A87: Emission system required output | B87: QH;em,i;out | D87: kWh | E87: =+E86 -> 1483.295242 | F87: =+F86 -> 1378.698105 | G87: =+G86 -> 1173.852968 | H87: =+H86 -> 586.9264842 | O87: Data ouput to module
A88: Emission system operation time | B88: tH;em,i;ON | D88: h | E88: =+Method_input!E189 -> 744 | F88: =+Method_input!E190 -> 744 | G88: =+Method_input!E191 -> 744 | H88: =+Method_input!E192 -> 744 | O88: Data ouput to module
A89: Fans operation time | B89: tH;cr,i;ON x βem | D89: h | E89: =+E201 -> 561.4663502 | F89: =+F201 -> 260.9367883 | G89: 538.89408 | H89: 47.93817611 | N89: Auxiliary of emiters to be calculated in the circuit module in this EN 15316-1 to avoid a loop. Putting the equation for auxiliaries in EN 15316-2 but asking for β from EN 15316-1 creates problems. Needs a more accurate look to solve definitely.
A91: Heating emission and control input | B91: QH;em,i;out | D91: kWh | E91: =+Method_input!E57 -> 1648.105825 | F91: =+Method_input!E58 -> 1531.886784 | G91: =+Method_input!E59 -> 1296.502064 | H91: =+Method_input!E60 -> 617.8173518 | O91: Data input as module return
A92: Heating emission and control aux | B92: QH;em,i;aux | D92: kWh | E92: =+Method_input!E61 -> 0 | F92: =+Method_input!E62 -> 0 | G92: =+Method_input!E63 -> 7.779012382 | H92: =+Method_input!E64 -> 0 | O92: Data input as module return | U92: =SUM(E92:H92) -> 7.779012382
A93: Heating emission and control recoverable losses | B93: QH;em;i;ls;rbl;H | D93: kWh | E93: =+Method_input!E65 -> 0 | F93: =+Method_input!E66 -> 0 | G93: =+Method_input!E67 -> 0 | H93: =+Method_input!E68 -> 0
A94: Heating emission and control losses where recoverable | B94: TZH;em,i;ls;rbl,hz | D94: - | E94: =+Method_input!E69 -> TZ1 | F94: =+Method_input!E70 -> TZ2 | G94: =+Method_input!E71 -> TZ3 | H94: =+Method_input!E72 -> TZ3 | Q94: =IF($E94=Q$4,$E93,0)+IF($F94=Q$4,$F93,0)+IF($G94=Q$4,$G93,0)+IF($H94=Q$4,$H93,0)+IF($I94=Q$4,$I93,0)+IF($J94=Q$4,$J93,0)+IF($K94=Q$4,$K93,0) -> 0 | R94: 0 | S94: 0 | T94: 0
A95: Emission & ctrl input | B95: QH;em;i;in | D95: kWh | E95: =+E91 -> 1648.105825 | F95: =+F91 -> 1531.886784 | G95: 1296.502064 | H95: 617.8173518
A97: Temperature (operating conditions) calculation for emitters
A98: Water specific heat | B98: cw | C98: c_w | D98: Wh/kgK | E98: =+Method_input!E246 -> 1.16 | N98: Constant | O98: Copy of input
A99: Emitters properties | N99: Common input for any type of emitter circuit | O99: Copy of input
A100: Nominal emitter power | B100: ΦH;em;n | D100: kW | E100: =+Method_input!E124 -> 5 | F100: =+Method_input!E125 -> 10 | G100: =+Method_input!E126 -> 5 | H100: =+Method_input!E127 -> 10 | O100: Copy of input
A101: Nominal DT (air) | B101: ΔθH;em;air | D101: °C | E101: =+Method_input!E159 -> 50 | F101: =+Method_input!E160 -> 50 | G101: =+Method_input!E161 -> 15 | H101: =+Method_input!E162 -> 25 | O101: Copy of input
A102: Emitter exponent | B102: nH;em | E102: =+Method_input!E164 -> 1.3 | F102: =+Method_input!E165 -> 1.3 | G102: =+Method_input!E166 -> 1.1 | H102: =+Method_input!E167 -> 1 | O102: Copy of input
A103: Mixing valve | B103: MIX_EM | E103: =Method_input!$E$214=1 -> FALSE | F103: =Method_input!$E$215=1 -> FALSE | G103: =Method_input!$E$216=1 -> TRUE | H103: =Method_input!$E$217=1 -> FALSE | N103: Specifies if there is a mixing valve at the connectoin point to the header | O103: Copy of input
A104: Mixing valve Δθ | B104: ΔθH;em;mix | E104: =+Method_input!$E$219 -> 2 | F104: =+Method_input!$E$220 -> 2 | G104: =+Method_input!$E$221 -> 2 | H104: =+Method_input!$E$222 -> 2 | N104: Specifies the minimum desired DT for correct operation of the mixing valve, if any | O104: Copy of input
A106: Type 1: constant flow and temperature
A107: Control properties
A108: Set full load DT (water) | B108: ΔθH;em;n | D108: °C | E108: =+Method_input!$E$194 -> 20 | F108: =+Method_input!$E$195 -> 20 | G108: =+Method_input!$E$196 -> 5 | H108: =+Method_input!$E$197 -> 10 | O108: Copy of input
A110: Average power | B110: ΦH,em,eff | D110: kW | E110: =+IF(E88=0,0,E95/E88) -> 2.215196001 | F110: 2.058987612 | G110: 1.742610301 | H110: 0.8303996664 | M110: (C.1) | O110: "eff" for effective i.e. actual
A111: Nominal flow rate | B111: V’H,em,nom | D111: m³/h | E111: =+E100/(E108*__c_w) -> 0.2155172414 | F111: =+F100/(F108*__c_w) -> 0.4310344828 | G111: =+G100/(G108*__c_w) -> 0.8620689655 | H111: =+H100/(H108*__c_w) -> 0.8620689655 | M111: (C.4)
A112: Actual flow rate | B112: V’H,em,eff | D112: m³/h | E112: =+E111 -> 0.2155172414 | F112: =+F111 -> 0.4310344828 | G112: =+G111 -> 0.8620689655 | H112: =+H111 -> 0.8620689655 | M112: (C.5)
A113: Emitter to air temperature difference | B113: ΔθH,em,air,eff | D113: °C | E113: =+IFERROR(E101*((E110/E100)^(1/E102)),0) -> 26.7302137 | F113: =+IFERROR(F101*((F110/F100)^(1/F102)),0) -> 14.82556789 | G113: 5.753564172 | H113: 2.075999166 | M113: (C.2)
A114: Average emitter temperature | B114: θH,em,avg | D114: °C | E114: =+E113+E85 -> 46.7302137 | F114: =+F113+F85 -> 34.82556789 | G114: =+G113+G85 -> 25.75356417 | H114: =+H113+H85 -> 22.07599917 | M114: (C.3)
A115: DT actual flow / return | B115: ΔθH,em,w,eff | D115: °C | E115: =+E110/(__c_w*E112) -> 8.860784003 | F115: =+F110/(__c_w*F112) -> 4.117975225 | G115: =+G110/(__c_w*G112) -> 1.742610301 | H115: =+H110/(__c_w*H112) -> 0.8303996664 | M115: (C.6)
A116: Emitter flow temperature | B116: θH,em,flw | D116: °C | E116: =+E114+E115/2 -> 51.1606057 | F116: =+F114+F115/2 -> 36.88455551 | G116: =+G114+G115/2 -> 26.62486932 | H116: =+H114+H115/2 -> 22.491199 | M116: (C.7)
A117: Emitter return temperature | B117: θH,em,ret | D117: °C | E117: =+E114-E115/2 -> 42.29982169 | F117: =+F114-F115/2 -> 32.76658028 | G117: =+G114-G115/2 -> 24.88225902 | H117: =+H114-H115/2 -> 21.66079933 | M117: (C.8)
A119: Circuit required flow temperature | B119: θH,em,flw,min | D119: °C | E119: =IF(E103,E104+E116,E116) -> 51.1606057 | F119: =IF(F103,F104+F116,F116) -> 36.88455551 | G119: 28.62486932 | H119: 22.491199 | M119: (C.10)
A121: Type 2: Variable flow rate
A122: Control properties
A123: Target return temperature | B123: θH,em,ret,set | D123: °C | E123: =+MAX(Method_input!$E$209,E85) -> 20 | F123: =+MAX(Method_input!$E$209,F85) -> 20 | G123: =+MAX(Method_input!$E$209,G85) -> 20 | H123: =+MAX(Method_input!$E$209,H85) -> 20
A124: Set full load DT (water) | B124: ΔθH;em;w;n | D124: °C | E124: =+Method_input!$E$194 -> 20 | F124: =+Method_input!$E$195 -> 20 | G124: =+Method_input!$E$196 -> 5 | H124: =+Method_input!$E$197 -> 10 | O124: Copy of input
A125: Maximum flow temperature | B125: θH;em;flw;max | D125: °C | E125: =+Method_input!E199 -> 80 | F125: =+Method_input!$E$200 -> 80 | G125: =+Method_input!$E$201 -> 80 | H125: =+Method_input!$E$202 -> 80 | O125: Copy of input
A126: Max Δθ flow / return HZ1 | B126: ΔθH;em:w;max | D126: °C | E126: =+Method_input!$E$204 -> 20 | F126: =+Method_input!$E$205 -> 20 | G126: =+Method_input!$E$206 -> 20 | H126: =+Method_input!$E$207 -> 20 | O126: Copy of input
A128: Average power | B128: ΦH,em,eff | D128: kW | E128: =+IF(E88=0,0,E95/E88) -> 2.215196001 | F128: =+IF(F88=0,0,F95/F88) -> 2.058987612 | G128: =+IF(G88=0,0,G95/G88) -> 1.742610301 | H128: =+IF(H88=0,0,H95/H88) -> 0.8303996664
A129: Actual DT (air) | B129: ΔθH,em,air,eff | D129: °C | E129: =+IFERROR(E101*((E128/E100)^(1/E102)),0) -> 26.7302137 | F129: =+IFERROR(F101*((F128/F100)^(1/F102)),0) -> 14.82556789 | G129: =+IFERROR(G101*((G128/G100)^(1/G102)),0) -> 5.753564172 | H129: =+IFERROR(H101*((H128/H100)^(1/H102)),0) -> 2.075999166
A130: Average emitter temperature | B130: θH,em,avg | D130: °C | E130: =+E85+E129 -> 46.7302137 | F130: =+F85+F129 -> 34.82556789 | G130: =+G85+G129 -> 25.75356417 | H130: =+H85+H129 -> 22.07599917
A131: Limited flow temperature | B131: θH,em,flw,lim | D131: °C | E131: =MIN(E125,E130+E126/2) -> 56.7302137 | F131: =MIN(F125,F130+F126/2) -> 44.82556789 | G131: =MIN(G125,G130+G126/2) -> 35.75356417 | H131: =MIN(H125,H130+H126/2) -> 32.07599917
A132: Emitter flow temperature | B132: θH,em,flw | D132: °C | E132: =MIN(E131,2*E130-E123) -> 56.7302137 | F132: =MIN(F131,2*F130-F123) -> 44.82556789 | G132: =MIN(G131,2*G130-G123) -> 31.50712834 | H132: =MIN(H131,2*H130-H123) -> 24.15199833
A133: Emiter return temperature | B133: θH,em,ret | D133: °C | E133: =2*E130-E132 -> 36.7302137 | F133: =2*F130-F132 -> 24.82556789 | G133: 20 | H133: 20
A134: Actual DT (flow/return) | B134: ΔθH,em,w,eff | D134: °C | E134: =+E132-E133 -> 20 | F134: =+F132-F133 -> 20 | G134: 11.50712834 | H134: 4.151998332
A135: Actual flow rate | B135: V’H,em,eff | D135: m³/h | E135: =+IFERROR(E128/(__c_w*E134),0) -> 0.09548258624 | F135: =+IFERROR(F128/(__c_w*F134),0) -> 0.08874946605 | G135: =+IFERROR(G128/(__c_w*G134),0) -> 0.1305495354 | H135: =+IFERROR(H128/(__c_w*H134),0) -> 0.1724137931
A137: Circuit required flow temperature | B137: θH,em,flw,min | D137: °C | E137: =E132+IF(E103,E104,0) -> 56.7302137 | F137: =F132+IF(F103,F104,0) -> 44.82556789 | G137: =G132+IF(G103,G104,0) -> 33.50712834 | H137: =H132+IF(H103,H104,0) -> 24.15199833
A139: Type 3: On-OFF control
A140: Control properties
A141: Set full load DT (water) | B141: ΔθH;em;w;n | D141: °C | E141: =+Method_input!$E$194 -> 20 | F141: =+Method_input!$E$195 -> 20 | G141: =+Method_input!$E$196 -> 5 | H141: =+Method_input!$E$197 -> 10
A142: Desired load factor with ON-OFF | B142: βH;em;req | D142: % | E142: =+Method_input!$E$224 -> 80 | F142: =+Method_input!$E$225 -> 80 | G142: =+Method_input!$E$226 -> 80 | H142: =+Method_input!$E$227 -> 80
A144: Nominal flow rate | B144: V’H,em,nom | D144: m³/h | E144: =+E100/(E141*__c_w) -> 0.2155172414 | F144: =+F100/(F141*__c_w) -> 0.4310344828 | G144: =+G100/(G141*__c_w) -> 0.8620689655 | H144: =+H100/(H141*__c_w) -> 0.8620689655
A145: Flow rate when on | B145: V’H,em,eff | D145: m³/h | E145: =+E144 -> 0.2155172414 | F145: =+F144 -> 0.4310344828 | G145: 0.8620689655 | H145: 0.8620689655
A146: Average power | B146: ΦH,em,eff | D146: kW | E146: =+IF(E88=0,0,E95/E88) -> 2.215196001 | F146: =+IF(F88=0,0,F95/F88) -> 2.058987612 | G146: =+IF(G88=0,0,G95/G88) -> 1.742610301 | H146: =+IF(H88=0,0,H95/H88) -> 0.8303996664
A147: Actual DT (air) | B147: ΔθH,em,air,eff | D147: °C | E147: =+IFERROR(E101*((E146/E100)^(1/E102)),0) -> 26.7302137 | F147: =+IFERROR(F101*((F146/F100)^(1/F102)),0) -> 14.82556789 | G147: =+IFERROR(G101*((G146/G100)^(1/G102)),0) -> 5.753564172 | H147: =+IFERROR(H101*((H146/H100)^(1/H102)),0) -> 2.075999166
A148: Flow temperature | B148: θH,em,flw,calc | D148: °C | E148: =+IFERROR(E85+(E101+E141/2)*((E146*100/E100/E142)^(1/E102)),0) -> 58.08288494 | F148: =+IFERROR(F85+(F101+F141/2)*((F146*100/F100/F142)^(1/F102)),0) -> 41.12218042 | G148: =+IFERROR(G85+(G101+G141/2)*((G146*100/G100/G142)^(1/G102)),0) -> 28.22211909 | H148: =+IFERROR(H85+(H101+H141/2)*((H146*100/H100/H142)^(1/H102)),0) -> 23.11399875
A150: Circuit required flow temperature | B150: θH,em,flw,min | D150: °C | E150: =E148+IF(E103,E104,0) -> 58.08288494 | F150: =F148+IF(F103,F104,0) -> 41.12218042 | G150: =G148+IF(G103,G104,0) -> 30.22211909 | H150: =H148+IF(H103,H104,0) -> 23.11399875 | P150: Not em but cr
A152: Type 4 - Variable heat exchange + by-pass
A153: Control properties
A154: Set full load DT (water) | B154: ΔθH;em;w;n | D154: °C | E154: =+Method_input!$E$194 -> 20 | F154: =+Method_input!$E$195 -> 20 | G154: =+Method_input!$E$196 -> 5 | H154: =+Method_input!$E$197 -> 10
A155: Desired load factor | B155: βH;em;req | D155: % | E155: =+Method_input!$E$224 -> 80 | F155: =+Method_input!$E$225 -> 80 | G155: =+Method_input!$E$226 -> 80 | H155: =+Method_input!$E$227 -> 80
A156: Minimum flow temperature | B156: θH,em,flw,min;set | D156: °C | E156: =+Method_input!$E$229 -> 50 | F156: =+Method_input!$E$230 -> 45 | G156: =+Method_input!$E$231 -> 50 | H156: =+Method_input!$E$232 -> 45
A158: Flow rate when on | B158: V’H,em,nom | E158: =+E100/(E154*__c_w) -> 0.2155172414 | F158: =+F100/(F154*__c_w) -> 0.4310344828 | G158: =+G100/(G154*__c_w) -> 0.8620689655 | H158: =+H100/(H154*__c_w) -> 0.8620689655
A159: Average power | B159: θH,em,eff | E159: =+IF(E88=0,0,E95/E88) -> 2.215196001 | F159: =+IF(F88=0,0,F95/F88) -> 2.058987612 | G159: =+IF(G88=0,0,G95/G88) -> 1.742610301 | H159: =+IF(H88=0,0,H95/H88) -> 0.8303996664
A160: calculated flow temperature | B160: θH,em,flw,calc | E160: =+IFERROR(E85+(E101+E154/2)*((E159*100/E100/E155)^(1/E102)),0) -> 58.08288494 | F160: =+IFERROR(F85+(F101+F154/2)*((F159*100/F100/F155)^(1/F102)),0) -> 41.12218042 | G160: =+IFERROR(G85+(G101+G154/2)*((G159*100/G100/G155)^(1/G102)),0) -> 28.22211909 | H160: =+IFERROR(H85+(H101+H154/2)*((H159*100/H100/H155)^(1/H102)),0) -> 23.11399875
A161: Set temperature | B161: θH,em,flw,set | E161: user | F161: user | G161: user | H161: user | O161: Data input
A162: Selected emitter flow temperature | B162: θH,em,flw,min | E162: =MAX(E160,E156,E161) -> 58.08288494 | F162: =MAX(F160,F156,F161) -> 45 | G162: 50 | H162: 45 | O162: Add set temperature
A164: Circuit required flow temperature | B164: θH,cr,flw,min | D164: °C | E164: =E162+IF(E103,E104,0) -> 58.08288494 | F164: =F162+IF(F103,F104,0) -> 45 | G164: =G162+IF(G103,G104,0) -> 52 | H164: =H162+IF(H103,H104,0) -> 45
A166: Type of circuit | E166: =Method_input!$D$170 -> 2 | F166: =Method_input!$D$171 -> 3 | G166: =Method_input!$D$172 -> 1 | H166: =Method_input!$D$173 -> 4
A167: Minimum flow temperature for circuits 1, 2 and 3 | B167: θH,cr,flw,min | E167: =CHOOSE(E166,E119,E137,E150,E164) -> 56.7302137 | F167: =CHOOSE(F166,F119,F137,F150,F164) -> 41.12218042 | G167: =CHOOSE(G166,G119,G137,G150,G164) -> 28.62486932
A168: Selected flow temperature (node output) | B168: θH;nod;out | E168: =MAX($E$167:$G$167) -> 56.7302137 | F168: =MAX($E$167:$G$167) -> 56.7302137 | G168: 56.7302137
A170: Minimum flow temperature for circuit 4 | B170: θH,cr,flw,min | G170: =+F275 -> 56.7302137 | H170: =CHOOSE(H166,H119,H137,H150,H164) -> 45 | I170: DHW
A171: Minimum flow temperature for node 123
A172: Selected flow temperature (node output) | B172: θH;nod;out | H172: =MAX(G170:I170) -> 56.7302137
A174: Complete temperature calculation
A175: Type 1
A176: Circuit flow temperature | B176: θH,cr,flw | D176: °C | E176: =+E168 -> 56.7302137 | F176: =+F168 -> 56.7302137 | G176: 56.7302137 | H176: =+H172 -> 56.7302137
A177: Circuit return temperature | B177: θH,cr,ret | D177: °C | E177: =+E117 -> 42.29982169 | F177: =+F117 -> 32.76658028 | G177: =+G117 -> 24.88225902 | H177: =+H117 -> 21.66079933
A178: Circuit flow rate | B178: V’H,cr | D178: m³/h | E178: =+E110/(__c_w*(E176-E177)) -> 0.1323354019 | F178: =+F110/(__c_w*(F176-F177)) -> 0.07407012494 | G178: =+G110/(__c_w*(G176-G177)) -> 0.04716944226 | H178: =+H110/(__c_w*(H176-H177)) -> 0.02041270989
A179: Distribution flow temperature | B179: θH,dis,flw | D179: °C | E179: =+E116 -> 51.1606057 | F179: =+F116 -> 36.88455551 | G179: =+G116 -> 26.62486932 | H179: =+H116 -> 22.491199
A180: Distribution return temperature | B180: θH,ret,ret | D180: °C | E180: =+E177 -> 42.29982169 | F180: =+F177 -> 32.76658028 | G180: 24.88225902 | H180: 21.66079933
A181: Emission load factor | B181: βH,em | E181: =+E110/E100 -> 0.4430392002 | F181: =+F110/F100 -> 0.2058987612 | G181: 0.3485220601 | H181: 0.08303996664
A182: Type 2
A183: Circuit flow temperature | B183: θH,cr,flw | D183: °C | E183: =+$E$168 -> 56.7302137 | F183: =+$F$168 -> 56.7302137 | G183: =+$G$168 -> 56.7302137 | H183: =+$H$172 -> 56.7302137
A184: With mixing valve
A185: Return temperature | B185: θH,cr,ret | D185: °C | E185: =+E133 -> 36.7302137 | F185: =+F133 -> 24.82556789 | G185: =+G133 -> 20 | H185: =+H133 -> 20
A186: Circuit flow rate | B186: V’H,cr | D186: m³/h | E186: =+E128/__c_w/(E183-E185) -> 0.09548258624 | F186: =+F128/__c_w/(F183-F185) -> 0.0556341961 | G186: =+G128/__c_w/(G183-G185) -> 0.04089957852 | H186: =+H128/__c_w/(H183-H185) -> 0.01948972547
A187: Without mixing valve
A188: Return temperature | B188: θH,cr,ret | D188: °C | E188: =MAX(E85,2*E130-E183) -> 36.7302137 | F188: =MAX(F85,2*F130-F183) -> 20 | G188: =MAX(G85,2*G130-G183) -> 20 | H188: =MAX(H85,2*H130-H183) -> 20
A189: Circuit flow rate | B189: V’H,cr | D189: m³/h | E189: =+E128/__c_w/(E183-E188) -> 0.09548258624 | F189: =+F128/__c_w/(F183-F188) -> 0.04832504749 | G189: =+G128/__c_w/(G183-G188) -> 0.04089957852 | H189: =+H128/__c_w/(H183-H188) -> 0.01948972547
A190: Selected circuit return temperature | B190: θH,cr,ret | D190: °C | E190: =IF(E103,E185,E188) -> 36.7302137 | F190: =IF(F103,F185,F188) -> 20 | G190: =IF(G103,G185,G188) -> 20 | H190: =IF(H103,H185,H188) -> 20
A191: Selected circuit flow rate | B191: V’H,cr | D191: m³/h | E191: =IF(E103,E186,E189) -> 0.09548258624 | F191: =IF(F103,F186,F189) -> 0.04832504749 | G191: =IF(G103,G186,G189) -> 0.04089957852 | H191: =IF(H103,H186,H189) -> 0.01948972547
A192: Distribution flow temperature | B192: θH,dis,flw | D192: °C | E192: =IF(E103,E137,E183) -> 56.7302137 | F192: =IF(F103,F137,F183) -> 56.7302137 | G192: =IF(G103,G137,G183) -> 33.50712834 | H192: =IF(H103,H137,H183) -> 56.7302137
A193: Distribution return temperature | B193: θH,dis,ret | D193: °C | E193: =+E190 -> 36.7302137 | F193: =+F190 -> 20 | G193: 20 | H193: 20
A194: Emission load factor | B194: βH,em | E194: =+E128/E100 -> 0.4430392002 | F194: =+F128/F100 -> 0.2058987612 | G194: 0.3485220601 | H194: 0.08303996664
A196: Type 3
A197: Flow temperature to emitters | B197: θH,em,flw,eff | D197: m³/h | E197: =IF(E103,E148,E168) -> 56.7302137 | F197: =IF(F103,F148,F168) -> 56.7302137 | G197: =IF(G103,G148,G168) -> 28.22211909 | H197: =IF(H103,H148,H172) -> 56.7302137
A198: Relative temperature difference | D198: - | E198: =+(E197-E85)/(E101+E141/2) -> 0.6121702283 | F198: =+(F197-F85)/(F101+F141/2) -> 0.6121702283 | G198: =+(G197-G85)/(G101+G141/2) -> 0.4698353765 | H198: =+(H197-H85)/(H101+H141/2) -> 1.224340457
A199: Relative power when ON | B199: βH;em;ON | D199: - | E199: =+E198^E102 -> 0.5283647868 | F199: =+F198^F102 -> 0.5283647868 | G199: =+G198^G102 -> 0.4356525751 | H199: =+H198^H102 -> 1.224340457
A200: Power when ON | B200: ФH;em;ON | D200: kW | E200: =+E199*E100 -> 2.641823934 | F200: =+F199*F100 -> 5.283647868 | G200: =+G199*G100 -> 2.178262876 | H200: =+H199*H100 -> 12.24340457
A201: Time ON | B201: t H,cr,ON | D201: h | E201: =+E86/E200 -> 561.4663502 | F201: =+F86/F200 -> 260.9367883 | G201: =+G86/G200 -> 538.89408 | H201: =+H86/H200 -> 47.93817611
A202: Emitter return temperature | B202: θH,em,ret | E202: =+E197-E200/(__c_w*E145) -> 46.16291796 | F202: =+F197-F200/(__c_w*F145) -> 46.16291796 | G202: =+G197-G200/(__c_w*G145) -> 26.04385621 | H202: =+H197-H200/(__c_w*H145) -> 44.48680913
A203: Circuit flow temperature | B203: θH,cr,flw | D203: °C | E203: =+E168 -> 56.7302137 | F203: =+F168 -> 56.7302137 | G203: =+G168 -> 56.7302137 | H203: =+H172 -> 56.7302137
A204: Circuit return temperature | B204: θH,cr,ret | D204: °C | E204: =+E202 -> 46.16291796 | F204: =+F202 -> 46.16291796 | G204: 26.04385621 | H204: 44.48680913
A205: Circuit flow rate | B205: V’H,cr | D205: m³/h | E205: =+E146/(__c_w*(E168-E202)) -> 0.1807133795 | F205: =+F146/(__c_w*(F168-F202)) -> 0.1679700621 | G205: =+G146/(__c_w*(G168-G202)) -> 0.0489549879 | H205: =+H146/(__c_w*(H172-H202)) -> 0.05846917641
A206: Distribution flow temperature | B206: θH,dis,flw | D206: °C | E206: =+E197 -> 56.7302137 | F206: =+F197 -> 56.7302137 | G206: =+G197 -> 28.22211909 | H206: =+H197 -> 56.7302137
A207: Distribution return temperature | B207: θH,ret,ret | D207: °C | E207: =+E202 -> 46.16291796 | F207: =+F202 -> 46.16291796 | G207: =+G202 -> 26.04385621 | H207: =+H202 -> 44.48680913
A208: Load factor | B208: βH,em | D208: - | E208: =+E201/E88 -> 0.7546590728 | F208: =+F201/F88 -> 0.3507214897 | G208: =+G201/G88 -> 0.72432 | H208: =+H201/H88 -> 0.0644330324
A210: Type 4
A211: With mixing valve
A212: Flow temperature | D212: °C | E212: =+E162 -> 58.08288494 | F212: =+F162 -> 45 | G212: =+G162 -> 50 | H212: =+H162 -> 45
A213: Without mixing valve
A214: Flow temperature | D214: °C | E214: =+E168 -> 56.7302137 | F214: =+F168 -> 56.7302137 | G214: =+G168 -> 56.7302137 | H214: =+H172 -> 56.7302137
A215: Selected flow temperature | B215: θH,em,flw,eff | D215: °C | E215: =IF(E121,E212,E214) -> 56.7302137 | F215: =IF(F121,F212,F214) -> 56.7302137 | G215: =IF(G121,G212,G214) -> 56.7302137 | H215: =IF(H121,H212,H214) -> 56.7302137
A216: Return temperature | B216: θH,em,ret | D216: °C | E216: =+E215-E159/(E158*__c_w) -> 47.86942969 | F216: =+F215-F159/(F158*__c_w) -> 52.61223847 | G216: =+G215-G159/(G158*__c_w) -> 54.98760339 | H216: =+H215-H159/(H158*__c_w) -> 55.89981403
A217: Average temperature | B217: θH,em,avg | D217: °C | E217: =+(E216+E215)/2 -> 52.29982169 | F217: =+(F216+F215)/2 -> 54.67122608 | G217: 55.85890855 | H217: 56.31501386
A218: Power when ON | B218: ΦH,em,ON | D218: kW | E218: =+E100*(((E217-E85)/E101)^E102) -> 2.833147341 | F218: =+F100*(((F217-F85)/F101)^F102) -> 6.212965675 | G218: =+G100*(((G217-G85)/G101)^G102) -> 13.04146537 | H218: =+H100*(((H217-H85)/H101)^H102) -> 14.52600554
A219: Circuit flow rate | B219: V’H,em | D219: m³/h | E219: =+IFERROR(E159/(__c_w*(E168-E216)),0) -> 0.2155172414 | F219: =+IFERROR(F159/(__c_w*(F168-F216)),0) -> 0.4310344828 | G219: =+IFERROR(G159/(__c_w*(G168-G216)),0) -> 0.8620689655 | H219: =+IFERROR(H159/(__c_w*(H172-H216)),0) -> 0.8620689655
A220: Distribution flow temperature | B220: θH,dis,flw | D220: °C | E220: =+E215 -> 56.7302137 | F220: 56.7302137 | G220: 56.7302137 | H220: 56.7302137
A221: Distribution return temperature | B221: θH,ret,ret | D221: °C | E221: 47.86942969 | F221: 52.61223847 | G221: 54.98760339 | H221: 55.89981403
A222: Load factor | B222: βH,em | E222: =+E159/E218 -> 0.781885209 | F222: =+F159/F218 -> 0.3314017363 | G222: =+G159/G218 -> 0.1336207436 | H222: =+H159/H218 -> 0.05716641535
A224: Data selection
A225: Circuit type | E225: =+Method_input!$D$170 -> 2 | F225: =+Method_input!$D$171 -> 3 | G225: =+Method_input!$D$172 -> 1 | H225: =+Method_input!$D$173 -> 4
A226: Flow temperature | B226: θH,cr,flw | E226: =+E168 -> 56.7302137 | F226: =+F168 -> 56.7302137 | G226: =+G168 -> 56.7302137 | H226: =+H172 -> 56.7302137 | N226: Select which to use
A227: Return temperature | B227: θH,cr,ret | E227: =CHOOSE(E225,E177,E190,E202,E216) -> 36.7302137 | F227: =CHOOSE(F225,F177,F190,F202,F216) -> 46.16291796 | G227: =CHOOSE(G225,G177,G190,G202,G216) -> 24.88225902 | H227: =CHOOSE(H225,H177,H190,H202,H216) -> 55.89981403 | N227: Select which to use
A228: Flow rate | B228: V'H,cr | E228: =CHOOSE(E225,E178,E191,E205,E219) -> 0.09548258624 | F228: =CHOOSE(F225,F178,F191,F205,F219) -> 0.1679700621 | G228: =CHOOSE(G225,G178,G191,G205,G219) -> 0.04716944226 | H228: =CHOOSE(H225,H178,H191,H205,H219) -> 0.8620689655 | N228: Select which to use
A229: Distribution flow temperature | B229: θH,dis,flw | E229: =CHOOSE(E$225,E179,E192,E206,E220) -> 56.7302137 | F229: 56.7302137 | G229: 26.62486932 | H229: 56.7302137 | N229: Select which to use
A230: Distribution return temperature | B230: θH,ret,ret | E230: 36.7302137 | F230: 46.16291796 | G230: 24.88225902 | H230: 55.89981403 | N230: Select which to use
... 128 more rows

Sheet Method_output
A1: THIS IS A MANDATORY SHEET Output of one step calculation shall be indicated here. Each cell in the column value shall be a reference to a single cell in the "Method_calculation" sheet. The macro will take the calculation step results and fill the values table in the "Output_series" sheet.
A5: Name | B5: Symbol | C5: Software name | D5: Unit | E5: Value | F5: Range | G5: Intended destination | H5: Varying | I5: Notes
A6: Fuel input for heating | B6: EH;gen;in | D6: kWh | E6: =+Method_calculation!E365 -> 6442.812532
A7: Energy carrier for heating | B7: H_FUEL | E7: =+Method_calculation!E366 -> FUEL_GAS
A8: Auxiliary energy for heating | B8: WH;aux | D8: kWh | E8: =+Method_calculation!E367 -> 294.9846797
A9: Fuel input for dhw | B9: EW;gen;in | D9: kWh | E9: =+Method_calculation!E368 -> 301.3022451
A10: Energy carrier for dhw | B10: H_FUEL | E10: =+Method_calculation!E369 -> FUEL_GAS
A11: Auxiliary energy for dhw | B11: WW;aux | D11: kWh | E11: =+Method_calculation!E370 -> 77.90893098
A12: Recoverable losses | B12: QHW;ls;rbl;H,1 | D12: kWh | E12: =+Method_calculation!E371 -> 
A13: Recoverable losses | B13: QHW;ls;rbl;H,2 | D13: kWh | E13: =+Method_calculation!F371 -> 
A14: Recoverable losses | B14: QHW;ls;rbl;H,3 | D14: kWh | E14: =+Method_calculation!G371 -> 
A15: Recoverable losses, where recoverable | B15: TZHW;ls;rbl,1 | D15: kWh | E15: =+Method_calculation!E372 -> TZ1
A16: Recoverable losses, where recoverable | B16: TZHW;ls;rbl,2 | D16: kWh | E16: =+Method_calculation!F372 -> TZ2
A17: Recoverable losses, where recoverable | B17: TZHW;ls;rbl,3 | D17: kWh | E17: =+Method_calculation!G372 -> TZ3
A24: To dhw final distribution module
A25: Dhw final distribution output | B25: QW;dfin;out,i | D25: kWh | E25: =+Method_calculation!I21 -> 248 | I25: WZ1
D26: kWh | E26: =+Method_calculation!K21 -> 486 | I26: WZ 2-3
A27: Dhw final distribution temperature | B27: ϑW;dfin,i | D27: °C | E27: =+Method_calculation!I22 -> 60 | I27: WZ1
D28: °C | E28: =+Method_calculation!K22 -> 50 | I28: WZ 2-3
A29: Dhw tapping rate | B29: ntap | D29: 1/h | E29: =+Method_calculation!I23 -> 0.125 | I29: WZ1
D30: 1/h | E30: =+Method_calculation!K23 -> 0.125 | I30: WZ 2-3
A31: To dhw circulation loop module
A32: Circulation loop output | B32: QW;dloop;out,i | D32: kWh | E32: =+Method_calculation!K32 -> 518.364
A33: Circulation loop temperature | B33: ϑW;dloop,j | D33: °C | E33: =+Method_calculation!K33 -> 50
A34: Circulation loop temperature difference | B34: ΔϑW;dloop,j | D34: °C | E34: =+Method_calculation!K34 -> 2
A35: Circulation loop operation time | B35: t;dloop;ON | D35: h | E35: =+Method_calculation!K35 -> 744
A36: To dhw storage module
A37: Storage output | D37: kWh | E37: =+Method_calculation!J47 -> 854.156
A38: Storage temperature | D38: °C | E38: =+Method_calculation!J48 -> 60
A39: Storage operation time | D39: h | E39: =+Method_calculation!J49 -> 744
A42: To heating emission module
A43: Emission system required output | B43: QH;em,i;out | D43: kWh | E43: =+Method_calculation!E87 -> 1483.295242
D44: kWh | E44: =+Method_calculation!F87 -> 1378.698105
D45: kWh | E45: =+Method_calculation!G87 -> 1173.852968
D46: kWh | E46: =+Method_calculation!H87 -> 586.9264842
A47: Emission system operation time | B47: tH;em,i;ON | D47: h | E47: =+Method_calculation!E88 -> 744
D48: h | E48: =+Method_calculation!F88 -> 744
D49: h | E49: =+Method_calculation!G88 -> 744
D50: h | E50: =+Method_calculation!H88 -> 744
A51: Emission load factor | B51: βH,em | D51: h | E51: =+Method_calculation!E231 -> 0.4430392002
D52: h | E52: =+Method_calculation!F231 -> 0.2058987612
D53: h | E53: =+Method_calculation!G231 -> 0.3485220601
D54: h | E54: =+Method_calculation!H231 -> 0.08303996664
A56: To distibution modules
A57: Circuits 1,2,3 and 4
A58: Distribution system required output | B58: QH;dis,i;out | D58: kWh | E58: =+Method_calculation!E234 -> 1648.105825
D59: kWh | E59: =+Method_calculation!F234 -> 1531.886784
D60: kWh | E60: =+Method_calculation!G234 -> 1296.502064
D61: kWh | E61: =+Method_calculation!H264 -> 617.8173518
A62: Flow temperature | B62: θH;dis,i;flw | D62: °C | E62: =+Method_calculation!$E$235 -> 56.7302137
D63: °C | E63: =+Method_calculation!$F$235 -> 56.7302137
D64: °C | E64: =+Method_calculation!$G$235 -> 26.62486932
D65: °C | E65: =+Method_calculation!H265 -> 56.7302137
A66: Return temperature | B66: tH;gen,i;ON | D66: °C | E66: =+Method_calculation!$E$236 -> 36.7302137
D67: °C | E67: =+Method_calculation!$F$236 -> 46.16291796
D68: °C | E68: =+Method_calculation!$G$236 -> 24.88225902
D69: °C | E69: =+Method_calculation!H266 -> 55.89981403
A70: Operation time | B70: tH;dis,i;ON | D70: h | E70: =+Method_calculation!$E$237 -> 744
D71: h | E71: =+Method_calculation!$F$237 -> 744
D72: h | E72: =+Method_calculation!$G$237 -> 744
D73: h | E73: =+Method_calculation!H267 -> 744
A74: Circuit 123
A75: Required output | B75: QH;dis,i;out | D75: kWh | E75: =+Method_calculation!F264 -> 4853.154503
A76: Flow temperature | B76: θH;dis,i;flw | D76: °C | E76: =+Method_calculation!F265 -> 56.7302137
A77: Return temperature | B77: tH;gen,i;ON | D77: °C | E77: =+Method_calculation!F266 -> 40.09462644
A78: Operation time | B78: tH;dis,i;ON | D78: h | E78: =+Method_calculation!F267 -> 744
A80: Thermal solar
A81: Required output for dhw | D81: kWh | E81: =+Method_calculation!J57 -> 898.796
A83: Generators - 1st call
A84: Flow temperature | D84: °C | E84: =+Method_calculation!G291 -> 60
D85: °C | E85: =+Method_calculation!H291 -> 60
A86: Operation time | D86: h | E86: =+Method_calculation!G292 -> 744
D87: h | E87: =+Method_calculation!H292 -> 744
A88: Generators - 2nd call
A89: Required output | D89: kWh | E89: =+Method_calculation!G341 -> 4761.6
E90: =+Method_calculation!H341 -> 1525.259254
A91: Operation time | D91: h | E91: =+Method_calculation!G342 -> 744
E92: =+Method_calculation!H342 -> 744
A93: Flow temperature | D93: °C | E93: =+Method_calculation!G343 -> 60
E94: =+Method_calculation!H343 -> 60
A95: Return temperature | D95: °C | E95: =+Method_calculation!G344 -> 55.713531
E96: =+Method_calculation!H344 -> 58.63328024
A103: Other data
A104: Fuel type | B104: LRH_FUEL | C104: LRH_FUEL | D104: List | E104: =+Method_calculation!#REF! ->  | F104: List | G104: M3-1 | H104: YES | I104: Needed to apply the right weighting factors
A110: To local heaters module
A111: Required heater output | B111: QH;gen,i;out | D111: kWh | E111: =+Method_calculation!E381 -> 1
D112: kWh | E112: =+Method_calculation!F381 -> 2
D113: kWh | E113: =+Method_calculation!G381 -> 3
D114: kWh | E114: =+Method_calculation!H381 -> 4
A115: Operation time | B115: tH;gen,i;ON | D115: h | E115: =+Method_calculation!E382 -> 11
D116: h | E116: =+Method_calculation!F382 -> 12
D117: h | E117: =+Method_calculation!G382 -> 13
D118: h | E118: =+Method_calculation!H382 -> 14

Sheet Other modules
A1: THIS IS A SPECIFIC SHEET Here the connected modules are simulated with linear equations
A3: Description | B3: Symbol | C3: Software name | D3: Unit | E3: Values | L3: Formula ref | M3: Formula | N3: Notes
E4: HZ 1 | F4: HZ 2 | G4: HZ 3 | H4: HZ 4 | I4: WZ 1 | J4: WZ 2 | K4: WZ 3
A5: FINAL DISTRIBUTION FOR DHW
A6: Dhw final distribution output | B6: QW;dfin;out,i | D6: kWh | I6: =+Method_output!E25 -> 248 | K6: =+Method_output!E26 -> 486
A7: Dhw final distribution temperature | B7: ϑW;dfin | D7: °C | I7: =+Method_calculation!I22 -> 60 | K7: =+Method_calculation!K22 -> 50 | N7: Data received
A8: calculation interval | B8: tci | D8: h | I8: =+Method_input!E9 -> 744 | K8: =+Method_input!E9 -> 744 | N8: Assumed known
A9: Tapping frequency | B9: ntap | D9: 1/h | I9: =+Method_output!E30 -> 0.125 | K9: =+Method_output!E30 -> 0.125 | N9: Data received
A10: Water volume | B10: V | D10: l | I10: 10 | K10: 10 | N10: Simulation
A11: Ribbon heating | D11: 0…1 | I11: 0 | K11: 0 | L11: \
A12: Losses | D12: kWh | I12: =+(I7-20)*I10*1.16*I8*I9/1000 -> 43.152 | K12: =+(K7-20)*K10*1.16*K8*K9/1000 -> 32.364
A13: Fraction recoverable | D13: % | I13: 100 | K13: 50
A14: Heating zone | I14: TZ3 | K14: TZ1
A15: Dhw final distribution loses | B15: QW;dfin;i;ls;rbl;H | I15: =+I12*(1-I11) -> 43.152 | K15: =+K12*(1-K11) -> 32.364
A16: Dhw final distribution input | B16: QW;dfin;i;in | D16: kWh | I16: =+I15+I6 -> 291.152 | K16: =+K15+K6 -> 518.364 | M16: Do we come back with losses or input? What about recovery? | N16: Data returned
A17: Dhw final distribution aux | B17: QW;dfin;i;aux | D17: kWh | I17: =+I12*I11 -> 0 | K17: =+K12*K11 -> 0 | N17: Data returned
A18: Dhw final distribution recoverable | B18: QW;dfin;i;ls;rbl;H | D18: kWh | I18: =+I12*I13/100 -> 43.152 | K18: =+K12*K13/100 -> 16.182 | N18: Data returned
A19: Dhw final distribution where recoverable | B19: TZdfin,i;ls;rbl,hz | D19: - | I19: =+I14 -> TZ3 | K19: =+K14 -> TZ1 | N19: Data returned
A20: DHW Circulation loop
A21: Circulation loop output | B21: QW;dloop;out,i | D21: kWh | K21: =+Method_output!E32 -> 518.364 | N21: Data received
A22: Circulation loop temperature | B22: ϑW;dloop,j | D22: °C | K22: =+Method_output!E33 -> 50 | N22: Data received
A23: Circulation loop temperature difference | B23: ΔϑW;dloop,j | D23: °C | K23: =+Method_output!E34 -> 2 | N23: Data received
A24: Circulation loop operation time | B24: t;dloop;ON | D24: h | K24: =+Method_output!E35 -> 744 | N24: Data received
A25: Room temperature | D25: °C | K25: 20
A26: Heat loss coefficient | D26: W/K | K26: 2.5
A27: Fraction recoverable | D27: % | K27: 20
A28: Heating zone | K28: Any
A29: Pump power | D29: W | K29: 50
A30: Fraction auxiliary recoverable | D30: % | K30: 80
A31: Dhw circulation loop losses | B31: QW;dloop;i;ls | D31: kWh | K31: =+(K22-K25/2)*K24*K26/1000 -> 74.4
A32: Dhw circulation loop input | B32: QW;dloop;i;in | D32: kWh | K32: =+K21+K31-K33*K30/100 -> 563.004 | N32: Data returned
A33: Dhw circulation loop aux | B33: QW;dloop;i;aux | D33: kWh | K33: =+K29*K24/1000 -> 37.2 | N33: Data returned
A34: Dhw circulation loop recoverable losses | B34: QW;dloop;i;ls;rbl;H | D34: kWh | K34: =+K31*K27/100 -> 14.88 | N34: Data returned
A35: Dhw circulation loop where recoverable | B35: TZdloop,i;ls;rbl | D35: - | K35: =+K28 -> Any | N35: Data returned
A36: Dhw storage
A37: Storge output | B37: QW;sto,i;out | D37: kWh | J37: =+Method_output!E37 -> 854.156 | N37: Data received
A38: Set storage temperature | B38: ϑW;sto | D38: °C | J38: =+Method_output!E38 -> 60 | N38: Data received
A39: Storage operation time | B39: tci | D39: h | J39: =+Method_output!E39 -> 744
A40: Room temperature | D40: °C | J40: 20 | N40: Actual module: use only equation 30
A41: Storage heat loss coefficient | B41: Hsto | D41: W/K | J41: 1.5
A42: B factor of the room where storage is located | J42: 0.5 | N42: 1 = external…0 = internal
A43: Location of storage | J43: TZ2
A44: Auxiliary average power | D44: W/K | J44: 0
A45: Storage losses | B45: Qw;sto;ls | D45: kWh | J45: =+J41*J39*(J38-J40)/1000 -> 44.64
A46: Storage input | B46: QW;dloop;i;in | D46: kWh | J46: =+J37+J45-J44*0.8 -> 898.796 | N46: Data returned
A47: Auxiliary energy | B47: Qw;sto;laux | D47: kWh | J47: =+J44*J39/1000 -> 0 | N47: Data returned
A48: Dhw storage rcoverable losses | B48: QW;dloop;i;ls;rbl;H | D48: kWh | J48: =+J45*(1-J42) -> 22.32 | N48: Data returned
A49: Dhw storage losses where recoverable | B49: TZdloop,i;ls;rbl,hz | D49: - | J49: =+J43 -> TZ2 | N49: Data returned
A52: Heating emission and control
A53: Emission system required output | B53: QH;em,i;out | D53: kWh | E53: =+Method_output!E43 -> 1483.295242 | F53: =+Method_output!E44 -> 1378.698105 | G53: =+Method_output!E45 -> 1173.852968 | H53: =+Method_output!E46 -> 586.9264842 | N53: Data received
A54: Emission system operation time | B54: tH;em,i;ON | D54: h | E54: =+Method_output!E47 -> 744 | F54: =+Method_output!E48 -> 744 | G54: =+Method_output!E49 -> 744 | H54: =+Method_output!E50 -> 744
A55: Emission load factor | B55: βH,em | E55: =+Method_output!E51 -> 0.4430392002 | F55: =+Method_output!E52 -> 0.2058987612 | G55: =+Method_output!E53 -> 0.3485220601 | H55: =+Method_output!E54 -> 0.08303996664
A56: Fans operation time | B56: tH;cr,i;ON | D56: h | E56: =+E54*E55 -> 329.6211649 | F56: =+F54*F55 -> 153.1886784 | G56: 259.3004127 | H56: 61.78173518
A57: Emission efficiency | D57: % | E57: 90 | F57: 90 | G57: 90 | H57: 95
A58: Auxiliary power | D58: W | E58: 0 | F58: 0 | G58: 30 | H58: 0
A59: Auxiliary recovery factor | D59: % | E59: 100 | F59: 100 | G59: 100 | H59: 100
A60: Where recoverable | E60: TZ1 | F60: TZ2 | G60: TZ3 | H60: TZ3
A61: Emission losses | B61: QH;em,i;ls | D61: kWh | E61: =+E53*(100-E57)/E57 -> 164.8105825 | F61: =+F53*(100-F57)/F57 -> 153.1886784 | G61: 130.4281076 | H61: 30.89086759
A62: Emission input | B62: QH;em,i;in | D62: kWh | E62: =+E53+E61-E63*E59/100 -> 1648.105825 | F62: =+F53+F61-F63*F59/100 -> 1531.886784 | G62: 1296.502064 | H62: 617.8173518 | N62: Data returned
A63: Emission aux | B63: WH;em,i;aux | D63: kWh | E63: =+E56*E58/1000 -> 0 | F63: =+F56*F58/1000 -> 0 | G63: 7.779012382 | H63: 0 | N63: Data returned
A64: Emission recoverable losses | B64: QH;em,i;ls;rbl;H | D64: kWh | E64: 0 | F64: 0 | G64: 0 | H64: 0 | M64: No recoverable losses | N64: Data returned
A65: Emission recoverable losses where recoverable | B65: TZH;em,i;ls;rbl,hz | D65: - | E65: =+E60 -> TZ1 | F65: =+F60 -> TZ2 | G65: TZ3 | H65: TZ3 | N65: Data returned
A66: Heating distribution circuits 1, 2, 3 and 4 | E66: HZ1 | F66: HZ2 | G66: HZ3 | H66: HZ4
A67: Distribution system required output | B67: QH;dis,i;out | D67: kWh | E67: =+Method_output!E58 -> 1648.105825 | F67: =+Method_output!E59 -> 1531.886784 | G67: =+Method_output!E60 -> 1296.502064 | H67: =+Method_output!E61 -> 617.8173518 | N67: Data received
A68: Distribution flow temperature | B68: ϑH;dis,i;flw | D68: °C | E68: =+Method_output!$E$62 -> 56.7302137 | F68: =+Method_output!$E$63 -> 56.7302137 | G68: =+Method_output!$E$64 -> 26.62486932 | H68: =+Method_output!$E$65 -> 56.7302137 | N68: Data received
A69: Distribution return temperature | B69: ϑH;dis,i;ret | D69: °C | E69: =+Method_output!$E$66 -> 36.7302137 | F69: =+Method_output!$E$67 -> 46.16291796 | G69: =+Method_output!$E$68 -> 24.88225902 | H69: =+Method_output!$E$69 -> 55.89981403 | N69: Data received
A70: Distribution operation time | B70: t;dis;ON | D70: h | E70: =+Method_output!$E$70 -> 744 | F70: =+Method_output!$E$71 -> 744 | G70: =+Method_output!$E$72 -> 744 | H70: =+Method_output!$E$73 -> 744 | N70: Data received
A71: Room temperature | D71: °C | E71: 20 | F71: 20 | G71: 20 | H71: 20
A72: Heat loss coefficient | D72: W/K | E72: 12 | F72: 5 | G72: 5 | H72: 12
A73: Fraction recoverable | D73: % | E73: 75 | F73: 50 | G73: 40 | H73: 30
A74: Heating zone | E74: TZ1 | F74: TZ2 | G74: TZ3 | H74: TZ3
A75: Pump power | D75: W | E75: 30 | F75: 10 | G75: 10 | H75: 30
A76: Recovery factor of auxiliary energy | D76: % | E76: 80 | F76: 80 | G76: 80 | H76: 80
A77: Distribution losses | B77: QW;dis;i;ls | D77: kWh | E77: =+((E68+E69)/2-E71)*E72*E70/1000 -> 238.6473479 | F77: =+((F68+F69)/2-F71)*F72*F70/1000 -> 116.9812249 | G77: 21.40325872 | H77: 324.2204438
A78: Distribution input | B78: QW;dis;i;in | D78: kWh | E78: =+E67+E77-E75*E70/100000 -> 1886.529972 | F78: =+F67+F77-F75*F70/100000 -> 1648.793609 | G78: 1317.830922 | H78: 941.8145956 | N78: Data returned
A79: Distribution aux | B79: QW;dis,i;aux | D79: kWh | E79: =+E75*E70*0.8/1000 -> 17.856 | F79: =+F75*F70*0.8/1000 -> 5.952 | G79: 5.952 | H79: 17.856 | N79: Data returned
A80: Distribution recoverable losses | B80: QW;dis,i;ls;rbl;H | D80: kWh | E80: =+E77*E73/100 -> 178.9855109 | F80: =+F77*F73/100 -> 58.49061244 | G80: 8.561303488 | H80: 97.26613313 | N80: Data returned
A81: Distribution where recoverable | B81: TZdis,i;ls;rbl,hz | D81: - | E81: =+E74 -> TZ1 | F81: =+F74 -> TZ2 | G81: TZ3 | H81: TZ3 | N81: Data returned
A83: Heating distribution circuit 123
A84: Distribution system required output | B84: QH;dis,i;out | D84: kWh | F84: =+Method_output!E75 -> 4853.154503 | N84: Data received
A85: Distribution flow temperature | B85: ϑH;dis,i;flw | D85: °C | F85: =+Method_output!E76 -> 56.7302137 | N85: Data received
A86: Distribution return temperature | B86: ϑH;dis,i;ret | D86: °C | F86: =+Method_output!E77 -> 40.09462644 | N86: Data received
A87: Distribution operation time | B87: t;dis;ON | D87: h | F87: =+Method_output!E78 -> 744 | N87: Data received
A88: Room temperature | D88: °C | F88: 20
A89: Heat loss coefficient | D89: W/K | F89: 10
A90: Fraction recoverable | D90: % | F90: 0
A91: Thermal zone where recoverable | F91: None
A92: Pump power | D92: W | F92: 50
A93: Recovery factor of auxiliary energy | D93: % | F93: 80
A94: Distribution losses | B94: QW;dis;i;ls | D94: kWh | F94: =+((F85+F86)/2-F88)*F89*F87/1000 -> 211.3884053
A95: Distribution input | B95: QW;dis;i;in | D95: kWh | F95: =+F94+F84-F92*F87/100000 -> 5064.170909 | N95: Data returned
A96: Distribution aux | B96: QW;dis,i;aux | D96: kWh | F96: =+F92*F87*0.8/1000 -> 29.76 | N96: Data returned
A97: Distribution recoverable losses | B97: QW;dis,i;ls;rbl;H | D97: kWh | F97: =+F94*F90/100 -> 0 | N97: Data returned
A98: Distribution where recoverable | B98: TZdis,i;ls;rbl,hz | D98: - | F98: =+F91 -> None | N98: Data returned
A99: THERMAL SOLAR
A100: Required output for dhw | D100: kWh | J100: =+Method_output!E81 -> 898.796
A101: External temperature | D101: °C | J101: =+Method_input!E26 -> 17
A102: Min for thermal solar | D102: °C | J102: 6
A103: max for thermal soalr | D103: °C | J103: 22
A104: Fraction auxiliary | D104: % | J104: 5
A105: Thermal zone where recoverable | J105: None
A106: Percent coverage | D106: % | J106: =MIN(MAX(100*(J101-J102)/(J103-J102),0),100) -> 68.75
A107: Output to distribution | D107: kWh | J107: =+J100*J106/100 -> 617.92225
A108: Auxiliary energy | D108: kWh | J108: =+J107*J104/100 -> 30.8961125
A109: Distribution recoverable losses | B109: QW;dis,i;ls;rbl;H | D109: kWh | J109: 0 | N109: Data returned
A110: Distribution where recoverable | B110: TZdis,i;ls;rbl,hz | D110: - | J110: =+J105 -> None | N110: Data returned
A112: GENERATOR, STEP 1 | F112: TOT | G112: G1 | H112: G2
A113: Flow temperature | D113: °C | G113: =+Method_output!E84 -> 60 | H113: =+Method_output!E85 -> 60
A114: Operation time | D114: h | G114: =+Method_output!E86 -> 744 | H114: =+Method_output!E87 -> 744
A115: Full load power | G115: =+Method_input!E234 -> 8 | H115: =+Method_input!E235 -> 15
A116: Maximum monthlky load | D116: % | G116: 80 | H116: 80
A117: Maximum output | D117: kWh | G117: =+G115*G114*G116/100 -> 4761.6 | H117: =+H115*H114*H116/100 -> 8928
A119: GENERATOR, STEP 2 | F119: TOT | G119: G1 | H119: G2
A120: Required output | D120: kWh | G120: =+Method_output!E89 -> 4761.6 | H120: =+Method_output!E90 -> 1525.259254
A121: Operation time | D121: h | G121: =+Method_output!E91 -> 744 | H121: =+Method_output!E92 -> 744
A122: Flow temperature | D122: °C | G122: =+Method_output!E93 -> 60 | H122: =+Method_output!E94 -> 60
A123: Return temperature | D123: °C | G123: =+Method_output!E95 -> 55.713531 | H123: =+Method_output!E96 -> 58.63328024
A124: Efficiency | D124: % | G124: =IF(G123<50,110-(G123-20)*0.5,95) -> 95 | H124: =92-(AVERAGE(H122:H123)-20)/10 -> 88.06833599
A125: Auxiliary | D125: % | G125: 3 | H125: 4
A126: Fraction recoverable | D126: % | G126: 40 | H126: 30
A127: Heating zone | G127: TZ3 | H127: None
A128: Fuel input | D128: kWh | G128: =+G120*100/G124 -> 5012.210526 | H128: =+H120*100/H124 -> 1731.90425
A129: Auxiliary energy | D129: kWh | G129: =+G128*G125/100 -> 150.3663158 | H129: =+H128*H125/100 -> 69.27617001
A130: Generation recoverable losses | B130: QW;gen,i;ls;rbl;H | D130: kWh | G130: =+MAX(G128-G120,0)*G126/100 -> 100.2442105 | H130: =+MAX(H128-H120,0)*H126/100 -> 61.99349885
A131: Generation where recoverable | B131: TZgen,i;ls;rbl,hz | G131: =+G127 -> TZ3 | H131: =+H127 -> None
A147: Spare lines for local air heaters
A150: Local heaters
A151: Required heater output | B151: QH;gen,i;out | D151: kWh | E151: =+Method_output!E111 -> 1 | F151: =+Method_output!E112 -> 2 | G151: =+Method_output!E113 -> 3 | H151: =+Method_output!E114 -> 4 | N151: Data received
A152: Operation time | B152: tH;gen,i;ON | D152: h | E152: =+Method_output!E115 -> 11 | F152: =+Method_output!E116 -> 12 | G152: =+Method_output!E117 -> 13 | H152: =+Method_output!E118 -> 14
A153: Local heater efficiency to air | D153: % | E153: 70 | F153: 70 | G153: 80 | H153: 70
A154: Local heater efficiency to water | D154: % | E154: 0 | F154: 15 | G154: 0 | H154: 0 | N154: If non zero, triggers a contribution to water
A155: Maximum power | D155: kW | E155: 2 | F155: 2 | G155: 2 | H155: 0 | N155: If zero, cancels heater effect
A156: Auxiliary energy use (% of input) | D156: % | E156: 3 | F156: 0 | G156: 5 | H156: 0 | N156: Auxiliary as percentage of input
A157: Auxiliary recovery | D157: % | E157: 100 | F157: 100 | G157: 0 | H157: 100 | N157: Recoverable part of auxiliary, if not altready accounted as reduction of input
A158: Heat loss recoverability factor | D158: % | E158: 0 | F158: 0 | G158: 50 | H158: 0 | N158: Recoverable part of losses, if not altready accounted as reduction of input
A159: Where recoverable | E159: TZ1 | F159: TZ2 | G159: TZ3 | H159: TZ3
A160: Supplied heat | B160: QH;gen,i;out | D160: kWh | E160: =IF(E155>0,MIN(E151,E152*E155*E153/100),0) -> 1 | F160: =IF(F155>0,MIN(F151,F152*F155*F153/100),0) -> 2 | G160: 3 | H160: 0 | N160: Data returned
A161: Supplied heat to water | B161: QH;gen,i;out;w | D161: kWh | E161: =IF(E160>0,E160*E154/E153,0) -> 0 | F161: =IF(F160>0,F160*F154/F153,0) -> 0.4285714286 | G161: 0 | H161: 0 | N161: Data returned
A162: Auxiliary input | B162: WH;gen,i;aux | D162: kWh | E162: =+E163*E156/100 -> 0.04157142857 | F162: =+F163*F156/100 -> 0 | G162: 0.1875 | H162: 0 | N162: Data returned
A163: Fuel input | B163: EH;gen,i;in | D163: kWh | E163: =+E160*(100/E153)*(1-E156*E157/10000) -> 1.385714286 | F163: =+F160*(100/F153)*(1-F156*F157/10000) -> 2.857142857 | G163: 3.75 | H163: 0 | N163: Data returned
A164: Heater recoverable losses | B164: QH;em,i;rbl | D164: kWh | E164: =+(E163-E161-E160)*E158/100 -> 0 | F164: =+(F163-F161-F160)*F158/100 -> 0 | G164: 0.375 | H164: 0 | N164: Data returned
A165: Heater losses where recoverable | B165: TZH;em,i;ls;rbl | D165: - | E165: =+E159 -> TZ1 | F165: =+F159 -> TZ2 | G165: TZ3 | H165: TZ3 | N165: Data returned

Sheet Output_series
A1: Here a time series can be generated to test the method with variable input data. Data input series must be inserted in the "input_series" sheet before.
A3: Time series for data output
A4: Settings
A5: Number of output data | C5: 12
A7: This table will be filled automatically via a macro scanning the "input_series" and performing for each time step the calculation defined in the "Method_calculation" sheet.
A8: Press CLEAR OUTPUT to reset output series
A9: Press "Run method" to start calculation of individual time steps
B13: Fuel input for heating | C13: Energy carrier for heating | D13: Auxiliary energy for heating | E13: Fuel input for dhw | F13: Energy carrier for dhw | G13: Auxiliary energy for dhw | H13: Recoverable losses | I13: Recoverable losses | J13: Recoverable losses | K13: Recoverable losses, where recoverable | L13: Recoverable losses, where recoverable | M13: Recoverable losses, where recoverable
B14: kWh | D14: kWh | E14: kWh | G14: kWh | H14: kWh | I14: kWh | J14: kWh | K14: kWh | L14: kWh | M14: kWh
A15: Symbol | B15: EH;gen;in | C15: H_FUEL | D15: WH;aux | E15: EW;gen;in | F15: H_FUEL | G15: WW;aux | H15: QHW;ls;rbl;H,1 | I15: QHW;ls;rbl;H,2 | J15: QHW;ls;rbl;H,3 | K15: TZHW;ls;rbl,1 | L15: TZHW;ls;rbl,2 | M15: TZHW;ls;rbl,3
A16: Destination
A17: Time stamp | D17: VALUES
A18: 1 | B18: 7828.523585 | C18: FUEL_GAS | D18: 349.3385933 | E18: 976.8893399 | F18: FUEL_GAS | G18: 70.71493144 | H18: 206.2305448 | I18: 69.57877002 | J18: 242.08743 | K18: TZ1 | L18: TZ2 | M18: TZ3
A19: 2 | B19: 6147.720398 | C19: FUEL_GAS | D19: 279.2091153 | E19: 876.4524329 | F19: FUEL_GAS | G19: 63.00926343 | H19: 165.8401721 | I19: 57.77513277 | J19: 208.0630755 | K19: TZ1 | L19: TZ2 | M19: TZ3
A20: 3 | B20: 3300.902177 | C20: FUEL_GAS | D20: 178.5298259 | E20: 946.1010495 | F20: FUEL_GAS | G20: 68.39176899 | H20: 109.5238133 | I20: 45.44917311 | J20: 176.2024613 | K20: TZ1 | L20: TZ2 | M20: TZ3
A21: 4 | B21: 1892.392442 | C21: FUEL_GAS | D21: 132.7465717 | E21: 915.2421053 | F21: FUEL_GAS | G21: 79.76001316 | H21: 75.03724989 | I21: 36.17661772 | J21: 137.0094229 | K21: TZ1 | L21: TZ2 | M21: TZ3
A22: 5 | B22: 0 | C22: FUEL_GAS | D22: 0 | E22: 946.1010526 | F22: FUEL_GAS | G22: 96.47914408 | H22: 0 | I22: 0 | J22: 18.92202105 | K22: TZ1 | L22: TZ2 | M22: TZ3
A23: 6 | B23: 0 | C23: FUEL_GAS | D23: 0 | E23: 915.2421053 | F23: FUEL_GAS | G23: 106.9312632 | H23: 0 | I23: 0 | J23: 18.30484211 | K23: TZ1 | L23: TZ2 | M23: TZ3
A24: 7 | B24: 0 | C24: FUEL_GAS | D24: 0 | E24: 946.1010526 | F24: FUEL_GAS | G24: 110.5228316 | H24: 0 | I24: 0 | J24: 18.92202105 | K24: TZ1 | L24: TZ2 | M24: TZ3
A25: 8 | B25: 0 | C25: FUEL_GAS | D25: 0 | E25: 946.1010526 | F25: FUEL_GAS | G25: 110.5228316 | H25: 0 | I25: 0 | J25: 18.92202105 | K25: TZ1 | L25: TZ2 | M25: TZ3
A26: 9 | B26: 0 | C26: FUEL_GAS | D26: 0 | E26: 915.2421053 | F26: FUEL_GAS | G26: 98.77988816 | H26: 0 | I26: 0 | J26: 18.30484211 | K26: TZ1 | L26: TZ2 | M26: TZ3
A27: 10 | B27: 3217.821183 | C27: FUEL_GAS | D27: 176.6899433 | E27: 946.1010639 | F27: FUEL_GAS | G27: 88.05293192 | H27: 87.30085848 | I27: 39.84980611 | J27: 168.5354698 | K27: TZ1 | L27: TZ2 | M27: TZ3
A28: 11 | B28: 5143.15503 | C28: FUEL_GAS | D28: 242.3248309 | E28: 929.11538 | F28: FUEL_GAS | G28: 71.17709658 | H28: 139.5444444 | I28: 52.395225 | J28: 202.9761293 | K28: TZ1 | L28: TZ2 | M28: TZ3
A29: 12 | B29: 6574.928512 | C29: FUEL_GAS | D29: 299.7713963 | E29: 970.0971013 | F29: FUEL_GAS | G29: 69.55946471 | H29: 178.9855109 | I29: 62.81592689 | J29: 227.8311834 | K29: TZ1 | L29: TZ2 | M29: TZ3

Sheet History
B2: Date | C2: Version scope | D2: Changes, notes
B4: 2014-11-29 | C4: First version for I/O check
B5: 2016-04-24 | C5: Completed scheme | D5: Including temperature calculation

Sheet Control_Options
A1: Example of process design data. In a simple structure, this can be connected directly to the "method_input" sheet where this data is required. In this example spreadsheet the "Method input" is linked to the detailed input.
A33: 6.3.1.2.9 Auxiliary energy recovery factor | B33: klrh,aux,rh | D33: =INDEX(C39:C41,A34) -> 0.8
A34: 2
A36: Data table
A37: Data | C37: klrh,aux,rh
A38: Unit | C38: -
A39: Heater located within the heated space | C39: 1
A40: Heater located outside the heated space | C40: 0.8
A41: Last case | C41: 0.5

Sheet Product_descriptive_data
A1: Example of descriptive data. In a simple structure, this can be connected directly to the "method_input" sheet where this data is required. In this example spreadsheet the "Method_input" is linked to the "data_catalogue".
A29: Product descriptive data (qualitative)
A31: Clause
A32: 5 | B32: LRH_TYPE | C32: =INDEX(C34:C45,A32) -> LRH_TYPE_
A33: Description | B33: Specifier, parts | C33: Specifier, complete
A34: Overhead luminous radiant heater | B34: LUM | C34: =$B$32&"_"&B34 -> LRH_TYPE_LUM
A35: Overhead radiant tube heater unflued | B35: RADNOFLUE | C35: =$B$32&"_"&B35 -> LRH_TYPE_RADNOFLUE
A36: Overhead radiant tube heater flued | B36: RADFLUE | C36: LRH_TYPE_RADFLUE
A37: Air heater, ON-OFF | C37: LRH_TYPE_
A38: Air heater modulating output and combustion air | C38: LRH_TYPE_
A39: Air heater modulating output and not combustion air | C39: LRH_TYPE_
A40: Stove | C40: LRH_TYPE_
A41: Example n°1 | C41: LRH_TYPE_
A42: Example n°2 | C42: LRH_TYPE_
A43: Example n°3 | C43: LRH_TYPE_
A44: Example n°4 | C44: LRH_TYPE_
A45: Last type | C45: LRH_TYPE_

Sheet Data_catalogue_example
A1: EXAMPLE OF A PRODUCT DATA CATALOGUE Product descriptive data is used to filter the actual catalogue. Unsuitable prioducts are indicated by "Non available" The desired product in the catalogue is then selected via the main list --> alla data is available with one click. NOTE: Default data are also part of the catalogue. This sample catalogue is connected to the "Method input" sheet. NOTE: This highlights the high importance of the user interface and of a correct data input structuring. | J1: DATA FOR EACH BOILER | W1: SELECTION OF BOILERS COMPATIBLE WITH THE QUALITATIVE DESCRIPTION
A4: Product descriptive data (qualitative)
A6: Boiler use
A7: 1 | C7: BLR_USE | D7: =INDEX(D9:D11,A7) -> BLR_USE_H
A9: Heating | D9: BLR_USE_H
A10: Domestic hot water | D10: BLR_USE_DHW
A11: All | D11: BLR_USE_ALL
A14: Fuel
A15: 1 | C15: BLR_FUEL | D15: =INDEX(D17:D19,A15) -> BLR_FUEL_GAS
A16: Values
A17: Gas | D17: BLR_FUEL_GAS
A18: Oil | D18: BLR_FUEL_OIL
A19: All | D19: BLR_FUEL_ALL
A22: Boiler type, condensing / non condensing
A23: 2 | C23: BLR_COND | D23: =INDEX(D25:D26,A23) -> BLR_COND_NO
A24: Values
A25: Condensing | D25: BLR_COND_YES
A26: Non condensing | D26: BLR_COND_NO
A29: Product technical data
A31: Generator output at full load; | E31: ФPn | F31: kW | G31: 60
A34: Boiler product data | C34: BLR_DATA | D34: =INDEX(D38:D49,C36) -> BLR_DATA_GAS_LT
C36: 2
A37: Values | W37: Display ? | X37: Condensing ? | Z37: Fuel ? | AB37: Condition 3? | AD37: Condition 4?
A38: =IF(W38,B38,"NOT COMPATIBLE") -> Gas, standard, minimum value | B38: Gas, standard, minimum value | D38: BLR_DATA_GAS_STD | W38: =AND(X38,Z38,AB38,AD38) -> TRUE | X38: =$D$23=Y38 -> TRUE | Y38: BLR_COND_NO | Z38: =OR($D$15=$D$19,$D$15=AA38) -> TRUE | AA38: BLR_FUEL_GAS | AB38: TRUE | AD38: TRUE
A39: =IF(W39,B39,"NOT COMPATIBLE") -> Gas, low temperature, minimum value | B39: Gas, low temperature, minimum value | D39: BLR_DATA_GAS_LT | W39: =AND(X39,Z39,AB39,AD39) -> TRUE | X39: =$D$23=Y39 -> TRUE | Y39: BLR_COND_NO | Z39: TRUE | AA39: BLR_FUEL_GAS | AB39: TRUE | AD39: TRUE
A40: NOT COMPATIBLE | B40: Gas, Condensing, minimum value | D40: BLR_DATA_GAS_CND | W40: FALSE | X40: FALSE | Y40: BLR_COND_YES | Z40: TRUE | AA40: BLR_FUEL_GAS | AB40: TRUE | AD40: TRUE
A41: NOT COMPATIBLE | B41: Oil, standard, minimum value | D41: BLR_DATA_OIL_STD | W41: FALSE | X41: TRUE | Y41: BLR_COND_NO | Z41: FALSE | AA41: BLR_FUEL_OIL | AB41: TRUE | AD41: TRUE
A42: NOT COMPATIBLE | B42: Oil, low temperature, minimum value | D42: BLR_DATA_OIL_LT | W42: FALSE | X42: TRUE | Y42: BLR_COND_NO | Z42: FALSE | AA42: BLR_FUEL_OIL | AB42: TRUE | AD42: TRUE
A43: NOT COMPATIBLE | B43: Oil, condensing, minimum value | D43: BLR_DATA_OIL_CND | W43: FALSE | X43: FALSE | Y43: BLR_COND_YES | Z43: FALSE | AA43: BLR_FUEL_OIL | AB43: TRUE | AD43: TRUE
A44: NOT COMPATIBLE | B44: Default national: 1 - old oil boiler | D44: BLR_DATA_NAT_1 | W44: FALSE | X44: TRUE | Y44: BLR_COND_NO | Z44: FALSE | AA44: BLR_FUEL_OIL | AB44: TRUE | AD44: TRUE
A45: Default national: 2 - old gas boiler | B45: Default national: 2 - old gas boiler | D45: BLR_DATA_NAT_2 | W45: TRUE | X45: TRUE | Y45: BLR_COND_NO | Z45: TRUE | AA45: BLR_FUEL_GAS | AB45: TRUE | AD45: TRUE
A46: Default national: 3 - new boiler | B46: Default national: 3 - new boiler | D46: BLR_DATA_NAT_3 | W46: TRUE | X46: TRUE | Y46: BLR_COND_NO | Z46: TRUE | AA46: BLR_FUEL_GAS | AB46: TRUE | AD46: TRUE
A47: Make 1 boiler 1 gas (catalogue) | B47: Make 1 boiler 1 gas (catalogue) | D47: BLR_DATA_CAT_01 | W47: TRUE | X47: TRUE | Y47: BLR_COND_NO | Z47: TRUE | AA47: BLR_FUEL_GAS | AB47: TRUE | AD47: TRUE
A48: NOT COMPATIBLE | B48: Make 1 boiler 2 oil (catalogue) | D48: BLR_DATA_CAT_02 | W48: FALSE | X48: TRUE | Y48: BLR_COND_NO | Z48: FALSE | AA48: BLR_FUEL_OIL | AB48: TRUE | AD48: TRUE
A49: Custom values | B49: Custom values | D49: BLR_DATA_USR | W49: TRUE | X49: TRUE | Y49: BLR_COND_NO | Z49: TRUE | AA49: BLR_FUEL_GAS | AB49: TRUE | AD49: TRUE
A52: System design data
A54: Localisation | C54: LOC | D54: =INDEX(D57:D60,C55) -> LOC_INT
C55: 1
A56: Values
A57: Heated space | D57: LOC_INT
A58: Unheated space | D58: LOC_UNH
A59: Boiler room | D59: LOC_BLR
A60: External | D60: LOC_EXT
A63: Operating conditions
A66: Direct connection
A67: Independent flow rate
A68: Heat exchanger
A69: Last option
A72: Description | C72: Variable TAG | D72: Option tag | E72: Symbol | F72: Unit | G72: Value | H72: Range | J72: =+D38 -> BLR_DATA_GAS_STD | K72: =+D39 -> BLR_DATA_GAS_LT | L72: =+D40 -> BLR_DATA_GAS_CND | M72: =+D41 -> BLR_DATA_OIL_STD | N72: =+D42 -> BLR_DATA_OIL_LT | O72: =+D43 -> BLR_DATA_OIL_CND | P72: =+D44 -> BLR_DATA_NAT_1 | Q72: =+D45 -> BLR_DATA_NAT_2 | R72: =+D46 -> BLR_DATA_NAT_3 | S72: =+D47 -> BLR_DATA_CAT_01 | T72: =+D48 -> BLR_DATA_CAT_02 | U72: =+D49 -> BLR_DATA_USR
A73: generator output at full load; | E73: ФPn | F73: kW | G73: =INDEX(J73:U73,1,$C$36) -> 60 | J73: =+$G$31 -> 60 | K73: 60 | L73: 60 | M73: 60 | N73: 60 | O73: 60 | P73: 60 | Q73: 60 | R73: 60 | S73: 45 | T73: 30 | U73: =+$G$31 -> 60
A74: Boiler type | G74: =INDEX(J74:U74,1,$C$36) -> BLR_COND_NO | J74: BLR_COND_NO | K74: BLR_COND_NO | L74: BLR_COND_YES | M74: BLR_COND_NO | N74: BLR_COND_NO | O74: BLR_COND_YES | P74: BLR_COND_NO | Q74: BLR_COND_NO | R74: BLR_COND_NO | S74: BLR_COND_NO | T74: BLR_COND_NO | U74: BLR_COND_YES
A75: Fuel type | G75: =INDEX(J75:U75,1,$C$36) -> BLR_FUEL_GAS | J75: BLR_FUEL_GAS | K75: BLR_FUEL_GAS | L75: BLR_FUEL_GAS | M75: BLR_FUEL_OIL | N75: BLR_FUEL_OIL | O75: BLR_FUEL_OIL | P75: BLR_FUEL_OIL | Q75: BLR_FUEL_GAS | R75: BLR_FUEL_GAS | S75: BLR_FUEL_GAS | T75: BLR_FUEL_OIL | U75: BLR_FUEL_GAS
A76: CE marking | G76: =INDEX(J76:U76,1,$C$36) -> BLR_CE_YES | J76: BLR_CE_YES | K76: BLR_CE_YES | L76: BLR_CE_YES | M76: BLR_CE_YES | N76: BLR_CE_YES | O76: BLR_CE_YES | P76: BLR_CE_YES | Q76: BLR_CE_YES | R76: BLR_CE_YES | S76: BLR_CE_YES | T76: BLR_CE_NO | U76: BLR_CE_YES
A77: Limited power | E77: ФPn,ltd | F77: kW | J77: =IF(J73>400,400,J73) -> 60 | K77: =IF(K73>400,400,K73) -> 60 | L77: 60 | M77: 60 | N77: 60 | O77: 60 | P77: 60 | Q77: 60 | R77: 60 | S77: 45 | T77: 30 | U77: 60
E78: C1 | F78: % | J78: 85 | K78: 88 | L78: 94 | M78: 85 | N78: 88 | O78: 94 | P78: 92 | Q78: 91 | R78: 93
E79: C2 | F79: % | J79: 2 | K79: 1.5 | L79: 1 | M79: 2 | N79: 1.5 | O79: 1 | P79: 0 | Q79: 0 | R79: 0
A80: generator efficiency at full load; | E80: ηgnr,Pn | F80: % | G80: =INDEX(J80:U80,1,$C$36) -> 90.66722688 | J80: =J78+J79*LOG10(J77) -> 88.5563025 | K80: =K78+K79*LOG10(K77) -> 90.66722688 | L80: 95.77815125 | M80: 88.5563025 | N80: 90.66722688 | O80: 95.77815125 | P80: 92 | Q80: 91 | R80: 93 | S80: 94 | T80: 92 | U80: 93
A81: generator output at intermediate load; | E81: ФPint | F81: kW | G81: =INDEX(J81:U81,1,$C$36) -> 18 | J81: =+J73*0.3 -> 18 | K81: =+K73*0.3 -> 18 | L81: 18 | M81: =+M73*0.3 -> 18 | N81: =+N73*0.3 -> 18 | O81: =+O73*0.3 -> 18 | P81: 18 | Q81: 18 | R81: 18 | S81: 13.5 | T81: 9 | U81: 18
E82: C3 | F82: % | J82: 81.5 | K82: 89 | L82: 98 | M82: 81.5 | N82: 89 | O82: =98/1.05 -> 93.33333333 | P82: 90 | Q82: 89 | R82: 91
E83: C4 | F83: % | J83: 3 | K83: 1.5 | L83: 1 | M83: 3 | N83: 1.5 | O83: =1/1.05 -> 0.9523809524 | P83: 0 | Q83: 0 | R83: 0
A84: generator efficiency at intermediate load; | E84: ηgnr,Pint | F84: % | G84: =INDEX(J84:U84,1,$C$36) -> 91.66722688 | J84: =J82+J83*LOG10(J77) -> 86.83445375 | K84: =K82+K83*LOG10(K77) -> 91.66722688 | L84: 99.77815125 | M84: 86.83445375 | N84: 91.66722688 | O84: 95.02681071 | P84: 90 | Q84: 89 | R84: 91 | S84: 94 | T84: 92 | U84: 93
E85: C5 | F85: % | J85: 8.5 | K85: 5 | L85: 4.8 | M85: 8.5 | N85: 5 | O85: 4.8 | P85: 5 | Q85: 5 | R85: 5
E86: C6 | F86: % | J86: -0.4 | K86: -0.35 | L86: -0.35 | M86: -0.4 | N86: -0.35 | O86: -0.35 | P86: -0.35 | Q86: -0.35 | R86: -0.35
A87: stand-by heat loss at test temperature difference Dθi,test; | E87: Фgnr,ls,P0 | F87: kW | G87: =INDEX(J87:U87,1,$C$36) -> 0.7157614713 | J87: =+J73*(J85/100)*(J73^J86) -> 0.9915387147 | K87: 0.7157614713 | L87: 0.6871310125 | M87: =+M73*(M85/100)*(M73^M86) -> 0.9915387147 | N87: =+N73*(N85/100)*(N73^N86) -> 0.7157614713 | O87: =+O73*(O85/100)*(O73^O86) -> 0.6871310125 | P87: 0.7157614713 | Q87: 0.7157614713 | R87: 0.7157614713 | S87: 0.5 | T87: 0.6 | U87: 0.4
E88: C7 | F88: W | J88: 0 | K88: 0 | L88: 0 | M88: 0 | N88: 0 | O88: 0 | P88: 0 | Q88: 0 | R88: 0
E89: C8 | F89: W | J89: 45 | K89: 45 | L89: 45 | M89: 45 | N89: 45 | O89: 45 | P89: 45 | Q89: 45 | R89: 45
E90: n | F90: - | J90: 0.48 | K90: 0.48 | L90: 0.48 | M90: 0.48 | N90: 0.48 | O90: 0.48 | P90: 0.48 | Q90: 0.48 | R90: 0.48
A91: power consumption of auxiliary devices at full load; | E91: Paux,gnr,Pn | F91: kW | G91: =INDEX(J91:U91,1,$C$36) -> 0.3211627101 | J91: =(+J88+J89*J73^J90)/1000 -> 0.3211627101 | K91: 0.3211627101 | L91: 0.3211627101 | M91: =(+M88+M89*M73^M90)/1000 -> 0.3211627101 | N91: =(+N88+N89*N73^N90)/1000 -> 0.3211627101 | O91: =(+O88+O89*O73^O90)/1000 -> 0.3211627101 | P91: 0.3211627101 | Q91: 0.3211627101 | R91: 0.3211627101 | S91: 0.3 | T91: 0.4 | U91: 0.6
E92: C7 | F92: W | J92: 0 | K92: 0 | L92: 0 | M92: 0 | N92: 0 | O92: 0 | P92: 0 | Q92: 0 | R92: 0
E93: C8 | F93: W | J93: 15 | K93: 15 | L93: 15 | M93: 15 | N93: 15 | O93: 15 | P93: 15 | Q93: 15 | R93: 15
E94: n | F94: - | J94: 0.48 | K94: 0.48 | L94: 0.48 | M94: 0.48 | N94: 0.48 | O94: 0.48 | P94: 0.48 | Q94: 0.48 | R94: 0.48
A95: power consumption of auxiliary devices at intermediate load; | E95: Paux,gnr,Pint | F95: kW | G95: =INDEX(J95:U95,1,$C$36) -> 0.06006508023 | J95: =(+J92+J93*J81^J94)/1000 -> 0.06006508023 | K95: 0.06006508023 | L95: 0.06006508023 | M95: =(+M92+M93*M81^M94)/1000 -> 0.06006508023 | N95: =(+N92+N93*N81^N94)/1000 -> 0.06006508023 | O95: =(+O92+O93*O81^O94)/1000 -> 0.06006508023 | P95: 0.06006508023 | Q95: 0.06006508023 | R95: 0.06006508023 | S95: 0.1 | T95: 0.07 | U95: 0.05
E96: C7 | F96: W | J96: 15 | K96: 15 | L96: 15 | M96: 15 | N96: 15 | O96: 15 | P96: 15 | Q96: 15 | R96: 15
E97: C8 | F97: W | J97: 0 | K97: 0 | L97: 0 | M97: 0 | N97: 0 | O97: 0 | P97: 0 | Q97: 0 | R97: 0
E98: n | F98: - | J98: 0 | K98: 0 | L98: 0 | M98: 0 | N98: 0 | O98: 0 | P98: 0 | Q98: 0 | R98: 0
A99: stand-by power consumption of auxiliary devices; | E99: Paux,gnr,P0 | F99: kW | G99: =INDEX(J99:U99,1,$C$36) -> 0.015 | J99: =(+J96+J97*J85^J98)/1000 -> 0.015 | K99: 0.015 | L99: 0.015 | M99: 0.015 | N99: 0.015 | O99: 0.015 | P99: 0.015 | Q99: 0.015 | R99: 0.015 | S99: 0 | T99: 0 | U99: 0
A100: auxiliary power when the generation system is inactive | E100: Paux,off | F100: kW | G100: =INDEX(J100:U100,1,$C$36) -> 0 | J100: 0 | K100: 0 | L100: 0 | M100: 0 | N100: 0 | O100: 0 | P100: 0 | Q100: 0 | R100: 0 | S100: 0 | T100: 0 | U100: 0
A101: minimum operating boiler temperature. | E101: θgnr,min | F101: °C | G101: =INDEX(J101:U101,1,$C$36) -> 30 | J101: 50 | K101: 30 | L101: 0 | M101: 50 | N101: 30 | O101: 0 | P101: 50 | Q101: 50 | R101: 50 | S101: 50 | T101: 50 | U101: 50
A102: Recoverable fraction of stand-by losses | E102: fgnr,env | F102: - | G102: =INDEX(J102:U102,1,$C$36) -> 0.5 | J102: 0.5 | K102: 0.5 | L102: 0.5 | M102: 0.5 | N102: 0.5 | O102: 0.5 | P102: 0.5 | Q102: 0.5 | R102: 0.5 | S102: 0.5 | T102: 0.5 | U102: 0.5
A104: correction factor of full-load efficiency; | E104: fcorr,Pn | F104: - | G104: =INDEX(J104:U104,1,$C$36) -> 0.04 | J104: 0.04 | K104: 0.04 | L104: 0.2 | M104: 0.04 | N104: 0.04 | O104: 0.2 | P104: 0.04 | Q104: 0.04 | R104: 0.1 | S104: 0.04 | T104: 0.04 | U104: 0.04
A105: correction factor of intermediate load efficiency; | E105: fcorr,Pint | F105: - | G105: =INDEX(J105:U105,1,$C$36) -> 0.05 | J105: 0.05 | K105: 0.05 | L105: 0.2 | M105: 0.05 | N105: 0.05 | O105: 0.2 | P105: 0.05 | Q105: 0.05 | R105: 0.05 | S105: 0.05 | T105: 0.05 | U105: 0.05
A107: generator average water temperature at test conditions for full load; | E107: θgnr,test,Pn | F107: °C | G107: =INDEX(J107:U107,1,$C$36) -> 70 | J107: 70 | K107: 70 | L107: 70 | M107: 70 | N107: 70 | O107: 70 | P107: 70 | Q107: 70 | R107: 70 | S107: 70 | T107: 70 | U107: 70
A108: generator average water temperature at test conditions for intermediate load; | E108: θgnr,test,Pint | F108: °C | G108: =INDEX(J108:U108,1,$C$36) -> 40 | J108: 50 | K108: 40 | L108: 30 | M108: 50 | N108: 40 | O108: 30 | P108: 50 | Q108: 50 | R108: 50 | S108: 50 | T108: 50 | U108: 50
A109: difference between mean boiler temperature and test room temperature in test conditions; | E109: Dθtest,P0 | F109: °C | G109: =INDEX(J109:U109,1,$C$36) -> 50 | J109: 50 | K109: 50 | L109: 50 | M109: 50 | N109: 50 | O109: 50 | P109: 50 | Q109: 50 | R109: 50 | S109: 50 | T109: 50 | U109: 50
A111: part of the auxiliary energy recovered | E111: frvd,aux | F111: - | G111: =INDEX(J111:U111,1,$C$36) -> 0.75 | J111: 0.75 | K111: 0.75 | L111: 0.75 | M111: 0.75 | N111: 0.75 | O111: 0.75 | P111: 0.75 | Q111: 0.75 | R111: 0.75 | S111: 0.75 | T111: 0.75 | U111: 0.75
A112: part of the nominal electrical power not transmitted to the distribution sub-system | E112: frbl,aux | F112: - | G112: =INDEX(J112:U112,1,$C$36) -> 0.25 | J112: 0.25 | K112: 0.25 | L112: 0.25 | M112: 0.25 | N112: 0.25 | O112: 0.25 | P112: 0.25 | Q112: 0.25 | R112: 0.25 | S112: 0.25 | T112: 0.25 | U112: 0.25
A117: System design data
A118: Installation room temperature; | E118: qi,brm | F118: °C | G118: 15
A119: Temperature reduction factor of install. room | E119: bbrm | F119: - | G119: 0.7

Sheet Simplified_input_correlation
A1: Create here a simulation of each correlation method in your Annex C
A4: Name | B4: Symbol | C4: Unit | D4: Value | E4: Range | F4: Formula ref. | G4: Formula | H4: Notes
A5: Input data
A6: Length of the building | B6: lL | C6: m | D6: 30 | E6: 4…100
A7: Width of the building | B7: lW | C7: m | D7: 20 | E7: 4…20
A8: Number of loors | B8: Nlev | C8: - | D8: 3 | E8: 1…10
A9: Floor heigth | B9: Hfl | C9: m | D9: 3.1 | E9: 2…5
A12: METHOD
A14: Detail all formulas
A15: Length of connection of radiators to vertical shafts | B15: lA | C15: m | D15: =0.55*Method_in*D7*D8 -> 990
A16: Length of vertical shafts | B16: lS | C16: m | D16: =0.025*Method_in*D7*D8*D9 -> 139.5
A17: Length of base collector | B17: lV | C17: m | D17: =2*Method_in+0.01625*Method_in*D7*D7 -> 255
A18: …
A20: Output data
A21: Length of shafts | B21: lS | C21: m | E21: 0...∞
A22: diameter of shafts | B22: dS | C22: m | E22: 0…0,2
A23: Length of base ring | B23: lB | C23: m | E23: 0...∞
A24: diameter of base ring | B24: dB | C24: m | E24: 0…0,2

Sheet Method_input _2
A1: All input data for the method shall be listed here. In the simplest version, values for data input in column D (both green and blue background) may be inserted manually. Varying data (green background) can be fed from the "input_series" sheet. In this sample data sheet, product data (blue background) is linked to a sample catalogue built in the "Detailed_input" sheet
A4: Name | B4: Symbol | C4: Unit | D4: Value | E4: Range | F4: Origin | G4: Varying | H4: Notes
A5: Operating conditions data
A6: heat output to the heat distribution sub-system(s); | B6: QH,gen,out | C6: kWh | D6: 28000 | E6: 0...∞ | F6: M3-6 | G6: YES
A7: calculation interval | B7: tci | C7: h | D7: 744 | E7: 0…8760 | F7: M1-9 | G7: Yes
A8: total time of generator(s) operation | B8: tgnr | C8: h | D8: 710 | E8: 0…8760 | F8: M1-6 | G8: Yes
A9: average water temperature in the boiler; | B9: qgnr,w,m | C9: °C | D9: 70 | E9: 0…100 | F9: M3-6 | G9: YES
A10: return water temperature to the boiler (for condensing boilers); | B10: qgnr,w,r | C10: °C | D10: 60 | E10: 0…100 | F10: M3-6 | G10: YES
A11: external temperature of the calculation interval | B11: qext | C11: °C | D11: 4 | E11: -50…+50 | F11: M1-13 | G11: YES
A15: Product data
A16: Product description data
A17: Condensing boiler | B17: BLR_COND | D17: =+Product_descriptive_data!C32 -> LRH_TYPE_ | E17: Y/N | F17: Local | G17: NO
A18: Fuel | B18: BLR_FUEL | D18: =+Product_descriptive_data!#REF! ->  | E18: List | F18: Local | G18: NO
A20: Product technical data
A21: generator output at full load; | B21: ФPn | C21: kW | D21: =+Product_tech_data!#REF! ->  | E21: 0...∞ | F21: Local | G21: NO
A22: generator efficiency at full load; | B22: ηgnr,Pn | C22: % | D22: =+Product_tech_data!#REF! ->  | E22: 0…120% | F22: Local | G22: NO
A23: generator output at intermediate load; | B23: ФPint | C23: kW | D23: =+Product_tech_data!#REF! ->  | E23: 0...∞ | F23: Local | G23: NO
A24: generator efficiency at intermediate load; | B24: ηgnr,Pint | C24: % | D24: =+Product_tech_data!#REF! ->  | E24: 0…120% | F24: Local | G24: NO
A25: stand-by heat loss at test temperature difference Dθi,test; | B25: Фgnr,ls,P0 | C25: kW | D25: =+Data_catalogue_example!G87 -> 0.7157614713 | E25: 0...∞ | F25: Local | G25: NO
A26: power consumption of auxiliary devices at full load; | B26: Paux,gnr,Pn | C26: kW | D26: =+Product_tech_data!#REF!/1000 ->  | E26: 0...∞ | F26: Local | G26: NO
A27: power consumption of auxiliary devices at intermediate load; | B27: Paux,gnr,Pint | C27: kW | D27: =+Product_tech_data!#REF!/1000 ->  | E27: 0...∞ | F27: Local | G27: NO
A28: stand-by power consumption of auxiliary devices; | B28: Paux,gnr,P0 | C28: kW | D28: =+Product_tech_data!#REF!/1000 ->  | E28: 0...∞ | F28: Local | G28: NO
A29: auxiliary power when the generation system is inactive | B29: Paux,off | C29: kW | D29: =+Data_catalogue_example!G100 -> 0 | E29: 0...∞ | F29: Local | G29: NO
A30: minimum operating boiler temperature. | B30: θgnr,min | C30: °C | D30: =+Product_tech_data!#REF! ->  | E30: 0…100 | F30: Local | G30: NO
A31: Recoverable fraction of stand-by losses | B31: fgnr,env | C31: - | D31: =+Product_tech_data!#REF! ->  | E31: 0…1 | F31: Local | G31: NO
F32: Local
A33: correction factor of full-load efficiency; | B33: fcorr,Pn | C33: - | D33: =+Product_tech_data!#REF! ->  | E33: 0…1 | F33: Local | G33: NO
A34: correction factor of intermediate load efficiency; | B34: fcorr,Pint | C34: - | D34: =+Product_tech_data!#REF! ->  | E34: 0…1 | F34: Local | G34: NO
A36: generator average water temperature at test conditions for full load; | B36: θgnr,test,Pn | C36: °C | D36: =+Product_tech_data!#REF! ->  | E36: 0…100 | F36: Local | G36: NO
A37: generator average water temperature at test conditions for intermediate load; | B37: θgnr,test,Pint | C37: °C | D37: =+Product_tech_data!#REF! ->  | E37: 0…100 | F37: Local | G37: NO
A38: difference between mean boiler temperature and test room temperature in test conditions; | B38: Dθtest,P0 | C38: °C | D38: =+Product_tech_data!#REF! ->  | E38: 0…100 | F38: Local | G38: NO
F39: Local
A40: part of the auxiliary energy recovered | B40: frvd,aux | C40: - | D40: =+Product_tech_data!#REF! ->  | E40: 0…1 | F40: Local | G40: NO
A41: part of the nominal electrical power not transmitted to the distribution sub-system | B41: frbl,aux | C41: - | D41: =+Product_tech_data!#REF! ->  | E41: 0….1 | F41: Local | G41: NO
A43: System design data
A44: Process design
A45: boiler room temperature; | B45: qi,brm | C45: °C | D45: =+Process_design_data!#REF! ->  | E45: -50…+50 | F45: Local | G45: Yes
A46: Temperature reduction factor of boiler room | B46: bbrm | C46: - | D46: =+Process_design_data!#REF! ->  | E46: 0…1 | F46: Local | G46: NO
A49: Control type data
A50: Burner control type
